{"text_format":"1","workbook":"xlsx","n_sheets":13,"sheets":["_@RISKFitInformation","Tables in STPIS chapter","T7.1 Historical SC performance","F7.1-7.11 Performance vs target","T7.3 Prop SC target cap & colla","Source data","2020-24 actual performance data","2024","2023","2022 Q1","2022 Q2-4","2021","2020"],"not_rendered":{"charts":15,"images":0,"macros":0,"external_links":0,"defined_names":95,"comments":0,"pivot_tables":0},"unopened":[],"bounds":{"document_bytes":16777216,"sheet_cells":100000,"rows_first":2000,"rows_last":500,"rows_between":2000,"halvings":0,"cell_chars":16384,"cell_head_chars":4096},"cells_cut":0,"cells_raw":0,"read":"whole","date_system":"1900"}

{"sheet":"_@RISKFitInformation","index":0,"n_rows":36,"n_cols":16,"rows_kept":36,"cut":false,"hidden":true,"merged":[]}
["Created By Version","8.9.0"]
["Required Version","5.0.0"]
["Recommended Version","6.0.0"]
["Modified By Version","8.9.0"]
[]
[]
[]
[]
["Count",26]
["GUID","Name","Range","CRC","Options","Comp. Graph Serialization","PP Graph Serialization","QQ Graph Serialization","Unsued","Fixed Params","Bootstrap Options","BootstrapParamGraphSerialization","BatchFit Options","BootstrapGOFGraphSerialization","FitSelector"]
["FIT_D3E64_41710","Dataset 1",{"$f":"#REF!","v":{"$error":"#REF!"}},0,"F1\t0\t0\t-1E+300\t1E+300\t1\t0\t0\t0\t0\t1\t25\tBetaGeneral\tBinomial\tExpon\tExtValue\tGamma\tGeomet\tIntUniform\tInvGauss\tLogistic\tLogLogistic\tLognorm\tNegBin\tNormal\tPareto\tPearson5\tPearson6\tPert\tPoisson\tTriang\tUniform\tWeibull\tExtValueMin\tLaplace\tLevy\tKumaraswamy\t0\t1\t-1\t1\t0\t1\t0\t0\t0","GF1_rK0qDwEAEwClAQwjACcANQCRAKUApgC0AMIAfwGhAZsBKwD//wAABQAAAAEEAAAAAAAAAAABHEZpdCBDb21wYXJpc29uIGZvciBEYXRhc2V0IDEBOlJpc2tOb3JtYWwoMC4xMTUyMDAsMC4wNjEwODQpDQpSaXNrUGFyZXRvKDEuNjYyNywwLjA1NjAwMCkBARAAAgABClN0YXRpc3RpY3MDAQEA/wEBAQEBAAEBAQAEAAAAAQEBAQEAAQEBAAQAAAAK4QAB9QAACgEAGwEAKwEAOgEATQEAXgEAaQEAdAEAEgAFSW5wdXQAAAD/AAD/AQEAAgATAAZOb3JtYWwAAQD/3BQ8AQAAAgAPAAZQYXJldG8AAk8BAAACAA4ABUV4cG9uAAOMAQAAAgANAARMZXZ5AARMAQAAAgARAAhFeHRWYWx1ZQAFOQEAAAIADwAGTm9ybWFsAAZOAQAAAgAJAAAAByMBAAACAAkAAAAIKQEAAAIACQAAAAlgAQAAAgCHAZEBAQEDAZqZmZmZmak/AABmZmZmZmbuPwAABQABAQEAAQEBAA==","GF1_jYW3AgEAEwBOAQwjAAAAMQBgAHAAcQCMAKgAAAAAAAAAJwD//wAAAQQAAAAAAAAAAAEpUHJvYmFiaWxpdHktUHJvYmFiaWxpdHkgUGxvdCBvZiBEYXRhc2V0IDEBAAEBDAABAAEGTGVnZW5kAwABAP8BAQEBAQ1JbnB1dCBQLVZhbHVlAQEBAAQAAAABAQEBAQ5GaXR0ZWQgUC1WYWx1ZQEBAQAEAAAACscAB9kAB+gAB/gABwYBBxMBByQBBzMBBzwBB0UBBxIACVJlZmVyZW5jZQAAIwEAAA8ABlBhcmV0bwABLwEAABAAB1VuaWZvcm0AAiUBAAAOAAVFeHBvbgADTwEAAA0ABExldnkABIwBAAARAAhFeHRWYWx1ZQAFTAEAAA8ABk5vcm1hbAAGOQEAAAkAAAAHTgEAAAkAAAAIKQEAAAkAAAAJYAEAAA==","GF1_jYW3AgEAEwCDAQwjAAAAMQCUAKQApQDBAN4AAAAAAAAAJwD//wAAAQQAAAAAAAAAAAEjUXVhbnRpbGUtUXVhbnRpbGUgUGxvdCBvZiBEYXRhc2V0IDEBOlJpc2tOb3JtYWwoMC4xMTUyMDAsMC4wNjEwODQpDQpSaXNrUGFyZXRvKDEuNjYyNywwLjA1NjAwMCkBAQwAAQABBkxlZ2VuZAMAAQD/AQEBAQEOSW5wdXQgUXVhbnRpbGUBAQEABAAAAAEBAQEBD0ZpdHRlZCBRdWFudGlsZQEBAQAEAAAACv0ABw8BBx4BBy0BBzsBB0gBB1kBB2gBB3EBB3oBBxIACVJlZmVyZW5jZQAAIwEAAA8ABk5vcm1hbAABLwEAAA8ABlBhcmV0bwACJQEAAA4ABUV4cG9uAANPAQAADQAETGV2eQAEjAEAABEACEV4dFZhbHVlAAVMAQAADwAGTm9ybWFsAAY5AQAACQAAAAdOAQAACQAAAAgpAQAACQAAAAlgAQAA",null,"0\t8\t\t\t\t\t\t\t\t","F1\tFALSE\t1000\t.95",null,null,null,4,true]
["FIT_CBEAB_BBA5E","Dataset 2",{"$f":"#REF!","v":{"$error":"#REF!"}},0,"F1\t0\t0\t-1E+300\t1E+300\t1\t0\t0\t0\t0\t1\t25\tBetaGeneral\tBinomial\tExpon\tExtValue\tGamma\tGeomet\tIntUniform\tInvGauss\tLogistic\tLogLogistic\tLognorm\tNegBin\tNormal\tPareto\tPearson5\tPearson6\tPert\tPoisson\tTriang\tUniform\tWeibull\tExtValueMin\tLaplace\tLevy\tKumaraswamy\t0\t1\t-1\t1\t0\t1\t0\t0\t0",null,null,null,null,"0\t8\t\t\t\t\t\t\t\t","F1\tFALSE\t1000\t.95",null,null,null,4,true]
["FIT_7C6A9_384D5","Dataset 3",{"$f":"#REF!","v":{"$error":"#REF!"}},0,"F1\t0\t0\t-1E+300\t1E+300\t1\t0\t0\t0\t0\t1\t25\tBetaGeneral\tBinomial\tExpon\tExtValue\tGamma\tGeomet\tIntUniform\tInvGauss\tLogistic\tLogLogistic\tLognorm\tNegBin\tNormal\tPareto\tPearson5\tPearson6\tPert\tPoisson\tTriang\tUniform\tWeibull\tExtValueMin\tLaplace\tLevy\tKumaraswamy\t0\t1\t-1\t1\t0\t1\t0\t0\t0","GF1_rK0qDwEAEwBpAQwjACcANQByAIYAhwCVAKMAQwFlAV8BKwD//wAAAAAAAAEEAAAAAAAAAAABHEZpdCBDb21wYXJpc29uIGZvciBEYXRhc2V0IDMBG1Jpc2tQYXJldG8oMS42NjI3LDAuMDU2MDAwKQEBEAACAAEKU3RhdGlzdGljcwMBAQD/AQEBAQEAAQEBAAQAAAABAQEBAQABAQEABAAAAArCAAHWAADrAAD2AAABAQAMAQAXAQAiAQAtAQA4AQASAAVJbnB1dAAAAP8AAP8BAQACABMABlBhcmV0bwABAP/cFDwBAAACAAkAAAACTwEAAAIACQAAAAOMAQAAAgAJAAAABEwBAAACAAkAAAAFOQEAAAIACQAAAAZOAQAAAgAJAAAAByMBAAACAAkAAAAIKQEAAAIACQAAAAlgAQAAAgBLAVUBAQEDAZqZmZmZmak/AABmZmZmZmbuPwAABQABAQEAAQEBAA==",null,null,null,"0\t8\t\t\t\t\t\t\t\t","F1\tFALSE\t1000\t.95",null,null,null,4,true]
["FIT_27052_82218","Line outage -fault",{"$f":"#REF!","v":{"$error":"#REF!"}},0,"F1\t0\t0\t-1E+300\t1E+300\t1\t0\t0\t0\t0\t1\t27\tBetaGeneral\tBinomial\tExpon\tExtValue\tGamma\tGeomet\tIntUniform\tInvGauss\tLogistic\tLogLogistic\tLognorm\tNegBin\tNormal\tPareto\tPearson5\tPearson6\tPert\tPoisson\tRayleigh\tTriang\tUniform\tWeibull\tExtValueMin\tLaplace\tLevy\tKumaraswamy\tCauchy\t0\t1\t-1\t1\t0\t1\t0\t0\t0","GF1_rK0qDwEAEwB6AQwjACcANQB7AI8AkACeAKwAVAF2AXABKwD//wAAAAAAAAEEAAAAAAAAAAABJUZpdCBDb21wYXJpc29uIGZvciBMaW5lIG91dGFnZSAtZmF1bHQBG1Jpc2tMZXZ5KDAuMDUwMjM1LDAuMDEwNTY2KQEBEAACAAEKU3RhdGlzdGljcwMBAQD/AQEBAQEAAQEBAAQAAAABAQEBAQABAQEABAAAAArLAAHfAADyAAABAQASAQAdAQAoAQAzAQA+AQBJAQASAAVJbnB1dAAAAP8AAP8BAQACABEABExldnkAAQD/3BQ8AQAAAgANAARMZXZ5AAJPAQAAAgAPAAZOb3JtYWwAA4wBAAACAAkAAAAETAEAAAIACQAAAAU5AQAAAgAJAAAABk4BAAACAAkAAAAHIwEAAAIACQAAAAgpAQAAAgAJAAAACWABAAACAFwBZgEBAQMBmpmZmZmZqT8AAGZmZmZmZu4/AAAFAAEBAQABAQEA",null,null,null,"0\t8\t\t\t\t\t\t\t\t","F1\tFALSE\t1000\t.95",null,null,null,2,true]
["FIT_96FDD_A7220","Dataset 5",{"$f":"#REF!","v":{"$error":"#REF!"}},0,"F1\t0\t0\t-1E+300\t1E+300\t1\t0\t0\t0\t0\t1\t25\tBetaGeneral\tBinomial\tExpon\tExtValue\tGamma\tGeomet\tIntUniform\tInvGauss\tLogistic\tLogLogistic\tLognorm\tNegBin\tNormal\tPareto\tPearson5\tPearson6\tPert\tPoisson\tTriang\tUniform\tWeibull\tExtValueMin\tLaplace\tLevy\tKumaraswamy\t0\t1\t-1\t1\t0\t1\t0\t0\t0","GF1_rK0qDwEAEwDBAQwjACcANQC9ANEA0gDgAO4AmwG9AbcBKwD//wAAAAAAAAEEAAAAAAAAAAABHEZpdCBDb21wYXJpc29uIGZvciBEYXRhc2V0IDUBZlJpc2tJbnZHYXVzcygwLjA3NDE5MCwwLjA2MDU2OSxSaXNrU2hpZnQoMC4wMzU4OTUpKQ0KUmlza0JldGFHZW5lcmFsKDAuMTQ3NTksMC4xNTc3MiwwLjA0ODAwMCwwLjE5ODQxKQEBEAACAAEKU3RhdGlzdGljcwMBAQD/AQEBAQEAAQEBAAQAAAABAQEBAQABAQEABAAAAAoNAQEhAQA4AQBOAQBZAQBkAQBvAQB6AQCFAQCQAQASAAVJbnB1dAAAAP8AAP8BAQACABUACEludkdhdXNzAAEA/9wUPAEAAAIAFAALQmV0YUdlbmVyYWwAAk8BAAACAAkAAAADjAEAAAIACQAAAARMAQAAAgAJAAAABTkBAAACAAkAAAAGTgEAAAIACQAAAAcjAQAAAgAJAAAACCkBAAACAAkAAAAJYAEAAAIAowGtAQEBAwGamZmZmZmpPwAAZmZmZmZm7j8AAAUAAQEBAAEBAQA=",null,null,null,"0\t8\t\t\t\t\t\t\t\t","F1\tFALSE\t1000\t.95",null,null,null,1,true]
["FIT_AC751_660CC","Dataset 6",{"$f":"#REF!","v":{"$error":"#REF!"}},0,"F1\t0\t0\t-1E+300\t1E+300\t1\t0\t0\t0\t0\t1\t25\tBetaGeneral\tBinomial\tExpon\tExtValue\tGamma\tGeomet\tIntUniform\tInvGauss\tLogistic\tLogLogistic\tLognorm\tNegBin\tNormal\tPareto\tPearson5\tPearson6\tPert\tPoisson\tTriang\tUniform\tWeibull\tExtValueMin\tLaplace\tLevy\tKumaraswamy\t0\t1\t-1\t1\t0\t1\t0\t0\t0","GF1_rK0qDwEAEwBpAQwjACcANQByAIYAhwCVAKMAQwFlAV8BKwD//wAAAAAAAAEEAAAAAAAAAAABHEZpdCBDb21wYXJpc29uIGZvciBEYXRhc2V0IDYBG1Jpc2tQYXJldG8oMS42NjI3LDAuMDU2MDAwKQEBEAACAAEKU3RhdGlzdGljcwMBAQD/AQEBAQEAAQEBAAQAAAABAQEBAQABAQEABAAAAArCAAHWAADrAAD2AAABAQAMAQAXAQAiAQAtAQA4AQASAAVJbnB1dAAAAP8AAP8BAQACABMABlBhcmV0bwABAP/cFDwBAAACAAkAAAACTwEAAAIACQAAAAOMAQAAAgAJAAAABEwBAAACAAkAAAAFOQEAAAIACQAAAAZOAQAAAgAJAAAAByMBAAACAAkAAAAIKQEAAAIACQAAAAlgAQAAAgBLAVUBAQEDAZqZmZmZmak/AABmZmZmZmbuPwAABQABAQEAAQEBAA==",null,null,null,"0\t8\t\t\t\t\t\t\t\t","F1\tTRUE\t1000\t.95",null,null,null,4,true]
["FIT_C6E21_90300","Dataset 7",{"$f":"#REF!","v":{"$error":"#REF!"}},0,"F1\t0\t0\t-1E+300\t1E+300\t1\t0\t0\t0\t0\t1\t25\tBetaGeneral\tBinomial\tExpon\tExtValue\tGamma\tGeomet\tIntUniform\tInvGauss\tLogistic\tLogLogistic\tLognorm\tNegBin\tNormal\tPareto\tPearson5\tPearson6\tPert\tPoisson\tTriang\tUniform\tWeibull\tExtValueMin\tLaplace\tLevy\tKumaraswamy\t0\t1\t-1\t1\t0\t1\t0\t0\t0","GF1_rK0qDwEAEwBuAQwjACcANQB2AIoAiwCZAKcASAFqAWQBKwD//wAAAAAAAAEEAAAAAAAAAAABHEZpdCBDb21wYXJpc29uIGZvciBEYXRhc2V0IDcBH1Jpc2tVbmlmb3JtKC0wLjAwNDI1NDcsMC4yNzEyNykBARAAAgABClN0YXRpc3RpY3MDAQEA/wEBAQEBAAEBAQAEAAAAAQEBAQEAAQEBAAQAAAAKxgAB2gAA8AAA+wAABgEAEQEAHAEAJwEAMgEAPQEAEgAFSW5wdXQAAAD/AAD/AQEAAgAUAAdVbmlmb3JtAAEA/9wUPAEAAAIACQAAAAJPAQAAAgAJAAAAA4wBAAACAAkAAAAETAEAAAIACQAAAAU5AQAAAgAJAAAABk4BAAACAAkAAAAHIwEAAAIACQAAAAgpAQAAAgAJAAAACWABAAACAFABWgEBAQMBmpmZmZmZqT8AAGZmZmZmZu4/AAAFAAEBAQABAQEA",null,null,null,"0\t8\t\t\t\t\t\t\t\t","F1\tFALSE\t1000\t.95",null,null,null,1,true]
["FIT_D6CC8_17FD9","Dataset 8",{"$f":"#REF!","v":{"$error":"#REF!"}},0,"F1\t0\t0\t-1E+300\t1E+300\t1\t0\t0\t0\t0\t1\t25\tBetaGeneral\tBinomial\tExpon\tExtValue\tGamma\tGeomet\tIntUniform\tInvGauss\tLogistic\tLogLogistic\tLognorm\tNegBin\tNormal\tPareto\tPearson5\tPearson6\tPert\tPoisson\tTriang\tUniform\tWeibull\tExtValueMin\tLaplace\tLevy\tKumaraswamy\t0\t1\t-1\t1\t0\t1\t0\t0\t0","GF1_rK0qDwEAEwCLAQwjACcANQCNAKEAogCwAL4AZQGHAYEBKwD//wAAAAAAAAEEAAAAAAAAAAABHEZpdCBDb21wYXJpc29uIGZvciBEYXRhc2V0IDgBNlJpc2tJbnZHYXVzcygwLjA4MjI3MSwwLjAzMjY5MixSaXNrU2hpZnQoOS4zOTkyMWUtMDUpKQEBEAACAAEKU3RhdGlzdGljcwMBAQD/AQEBAQEAAQEBAAQAAAABAQEBAQABAQEABAAAAArdAAHxAAAIAQAYAQAjAQAuAQA5AQBEAQBPAQBaAQASAAVJbnB1dAAAAP8AAP8BAQACABUACEludkdhdXNzAAEA/9wUPAEAAAIADgAFRXhwb24AAk8BAAACAAkAAAADjAEAAAIACQAAAARMAQAAAgAJAAAABTkBAAACAAkAAAAGTgEAAAIACQAAAAcjAQAAAgAJAAAACCkBAAACAAkAAAAJYAEAAAIAbQF3AQEBAwGamZmZmZmpPwAAZmZmZmZm7j8AAAUAAQEBAAEBAQA=",null,null,null,"0\t8\t\t\t\t\t\t\t\t","F1\tFALSE\t1000\t.95",null,null,null,1,true]
["FIT_5AD58_31040","Dataset 9",{"$f":"#REF!","v":{"$error":"#REF!"}},0,"F1\t0\t0\t-1E+300\t1E+300\t1\t0\t0\t0\t0\t1\t25\tBetaGeneral\tBinomial\tExpon\tExtValue\tGamma\tGeomet\tIntUniform\tInvGauss\tLogistic\tLogLogistic\tLognorm\tNegBin\tNormal\tPareto\tPearson5\tPearson6\tPert\tPoisson\tTriang\tUniform\tWeibull\tExtValueMin\tLaplace\tLevy\tKumaraswamy\t0\t1\t-1\t1\t0\t1\t0\t0\t0","GF1_rK0qDwEAEwByAQwjACcANQB0AIgAiQCXAKUATAFuAWgBKwD//wAAAAAAAAEEAAAAAAAAAAABHEZpdCBDb21wYXJpc29uIGZvciBEYXRhc2V0IDkBHVJpc2tOb3JtYWwoMC4wOTI4MjIsMC4wMzI5MTcpAQEQAAIAAQpTdGF0aXN0aWNzAwEBAP8BAQEBAQABAQEABAAAAAEBAQEBAAEBAQAEAAAACsQAAdgAAO0AAP8AAAoBABUBACABACsBADYBAEEBABIABUlucHV0AAAA/wAA/wEBAAIAEwAGTm9ybWFsAAEA/9wUPAEAAAIAEAAHVW5pZm9ybQACTwEAAAIACQAAAAOMAQAAAgAJAAAABEwBAAACAAkAAAAFOQEAAAIACQAAAAZOAQAAAgAJAAAAByMBAAACAAkAAAAIKQEAAAIACQAAAAlgAQAAAgBUAV4BAQEDAZqZmZmZmak/AABmZmZmZmbuPwAABQABAQEAAQEBAA==",null,null,null,"0\t8\t\t\t\t\t\t\t\t","F1\tFALSE\t1000\t.95",null,null,null,1,true]
["FIT_7E430_9D9B7","Dataset 10",{"$f":"#REF!","v":{"$error":"#REF!"}},0,"F1\t0\t0\t-1E+300\t1E+300\t1\t0\t0\t0\t0\t1\t25\tBetaGeneral\tBinomial\tExpon\tExtValue\tGamma\tGeomet\tIntUniform\tInvGauss\tLogistic\tLogLogistic\tLognorm\tNegBin\tNormal\tPareto\tPearson5\tPearson6\tPert\tPoisson\tTriang\tUniform\tWeibull\tExtValueMin\tLaplace\tLevy\tKumaraswamy\t0\t1\t-1\t1\t0\t1\t0\t0\t0","GF1_rK0qDwEAEwCEAQwjACcANQCLAJ8AoACuALwAXgGAAXoBKwD//wAAAAAAAAEEAAAAAAAAAAABHUZpdCBDb21wYXJpc29uIGZvciBEYXRhc2V0IDEwATNSaXNrSW52R2F1c3MoMC4wNTkyMjMsMC4wMzQ2MDgsUmlza1NoaWZ0KDAuMDMzMTMyKSkBARAAAgABClN0YXRpc3RpY3MDAQEA/wEBAQEBAAEBAQAEAAAAAQEBAQEAAQEBAAQAAAAK2wAB7wAABgEAEQEAHAEAJwEAMgEAPQEASAEAUwEAEgAFSW5wdXQAAAD/AAD/AQEAAgAVAAhJbnZHYXVzcwABAP/cFDwBAAACAAkAAAACTwEAAAIACQAAAAOMAQAAAgAJAAAABEwBAAACAAkAAAAFOQEAAAIACQAAAAZOAQAAAgAJAAAAByMBAAACAAkAAAAIKQEAAAIACQAAAAlgAQAAAgBmAXABAQEDAZqZmZmZmak/AABmZmZmZmbuPwAABQABAQEAAQEBAA==",null,null,null,"0\t8\t\t\t\t\t\t\t\t","F1\tFALSE\t1000\t.95",null,null,null,1,true]
["FIT_B1854_4D09","Dataset 11",{"$f":"#REF!","v":{"$error":"#REF!"}},0,"F1\t0\t0\t-1E+300\t1E+300\t1\t0\t0\t0\t0\t1\t25\tBetaGeneral\tBinomial\tExpon\tExtValue\tGamma\tGeomet\tIntUniform\tInvGauss\tLogistic\tLogLogistic\tLognorm\tNegBin\tNormal\tPareto\tPearson5\tPearson6\tPert\tPoisson\tTriang\tUniform\tWeibull\tExtValueMin\tLaplace\tLevy\tKumaraswamy\t0\t1\t-1\t1\t0\t1\t0\t0\t0","GF1_rK0qDwEAEwBsAQwjACcANQBwAIQAhQCTAKEARgFoAWIBKwD//wAAAAAAAAEEAAAAAAAAAAABHUZpdCBDb21wYXJpc29uIGZvciBEYXRhc2V0IDExARhSaXNrTGV2eSgzNi4yNzY1LDIuNzI3NCkBARAAAgABClN0YXRpc3RpY3MDAQEA/wEBAQEBAAEBAQAEAAAAAQEBAQEAAQEBAAQAAAAKwAAB1AAA5wAA+QAABAEADwEAGgEAJQEAMAEAOwEAEgAFSW5wdXQAAAD/AAD/AQEAAgARAARMZXZ5AAEA/9wUPAEAAAIAEAAHTGFwbGFjZQACTwEAAAIACQAAAAOMAQAAAgAJAAAABEwBAAACAAkAAAAFOQEAAAIACQAAAAZOAQAAAgAJAAAAByMBAAACAAkAAAAIKQEAAAIACQAAAAlgAQAAAgBOAVgBAQEDAZqZmZmZmak/AABmZmZmZmbuPwAABQABAQEAAQEBAA==",null,null,null,"0\t8\t\t\t\t\t\t\t\t","F1\tFALSE\t1000\t.95",null,null,null,1,true]
["FIT_48DAC_551A3","Dataset 4",{"$f":"#REF!","v":{"$error":"#REF!"}},0,"F1\t1\t0\t-1E+300\t1E+300\t1\t0\t0\t0\t0\t1\t25\tBetaGeneral\tBinomial\tExpon\tExtValue\tGamma\tGeomet\tIntUniform\tInvGauss\tLogistic\tLogLogistic\tLognorm\tNegBin\tNormal\tPareto\tPearson5\tPearson6\tPert\tPoisson\tTriang\tUniform\tWeibull\tExtValueMin\tLaplace\tLevy\tKumaraswamy\t0\t1\t-1\t1\t0\t1\t0\t0\t0","GF1_rK0qDwEAEwBiAQwjACcANQBqAH4AfwCNAJsAPAFeAVgBKwD//wAAAAAAAAEEAAAAAAAAAAABHEZpdCBDb21wYXJpc29uIGZvciBEYXRhc2V0IDQBE1Jpc2tQb2lzc29uKDEuMjAwMCkBARAAAgABClN0YXRpc3RpY3MDAQEA/wEBAQEBAAEBAQAEAAAAAQEBAQEAAQEBAAQAAAAKugABzgAA5AAA7wAA+gAABQEAEAEAGwEAJgEAMQEAEgAFSW5wdXQAAAD/AAD/AQEAAgAUAAdQb2lzc29uAAEA/9wUPAEAAAIACQAAAAJPAQAAAgAJAAAAA4wBAAACAAkAAAAETAEAAAIACQAAAAU5AQAAAgAJAAAABk4BAAACAAkAAAAHIwEAAAIACQAAAAgpAQAAAgAJAAAACWABAAACAEQBTgEBAQMBmpmZmZmZqT8AAGZmZmZmZu4/AAAFAAEBAQABAQEA",null,null,null,"0\t8\t\t\t\t\t\t\t\t","F1\tFALSE\t1000\t.95",null,null,null,4,true]
["FIT_56224_4C872","Dataset 12",{"$f":"#REF!","v":{"$error":"#REF!"}},0,"F1\t1\t0\t-1E+300\t1E+300\t1\t0\t0\t0\t0\t1\t25\tBetaGeneral\tBinomial\tExpon\tExtValue\tGamma\tGeomet\tIntUniform\tInvGauss\tLogistic\tLogLogistic\tLognorm\tNegBin\tNormal\tPareto\tPearson5\tPearson6\tPert\tPoisson\tTriang\tUniform\tWeibull\tExtValueMin\tLaplace\tLevy\tKumaraswamy\t0\t1\t-1\t1\t0\t1\t0\t0\t0","GF1_rK0qDwEAEwBkAQwjACcANQBsAIAAgQCPAJ0APgFgAVoBKwD//wAAAAAAAAEEAAAAAAAAAAABHUZpdCBDb21wYXJpc29uIGZvciBEYXRhc2V0IDEyARRSaXNrUG9pc3NvbigwLjIwMDAwKQEBEAACAAEKU3RhdGlzdGljcwMBAQD/AQEBAQEAAQEBAAQAAAABAQEBAQABAQEABAAAAAq8AAHQAADmAADxAAD8AAAHAQASAQAdAQAoAQAzAQASAAVJbnB1dAAAAP8AAP8BAQACABQAB1BvaXNzb24AAQD/3BQ8AQAAAgAJAAAAAk8BAAACAAkAAAADjAEAAAIACQAAAARMAQAAAgAJAAAABTkBAAACAAkAAAAGTgEAAAIACQAAAAcjAQAAAgAJAAAACCkBAAACAAkAAAAJYAEAAAIARgFQAQEBAwGamZmZmZmpPwAAZmZmZmZm7j8AAAUAAQEBAAEBAQA=",null,null,null,"0\t8\t\t\t\t\t\t\t\t","F1\tFALSE\t1000\t.95",null,null,null,4,true]
["FIT_30964_2B491","Dataset 13",{"$f":"#REF!","v":{"$error":"#REF!"}},0,"F1\t0\t0\t-1E+300\t1E+300\t1\t0\t0\t0\t0\t1\t25\tBetaGeneral\tBinomial\tExpon\tExtValue\tGamma\tGeomet\tIntUniform\tInvGauss\tLogistic\tLogLogistic\tLognorm\tNegBin\tNormal\tPareto\tPearson5\tPearson6\tPert\tPoisson\tTriang\tUniform\tWeibull\tExtValueMin\tLaplace\tLevy\tKumaraswamy\t0\t1\t-1\t1\t0\t1\t0\t0\t0","GF1_rK0qDwEAEwCFAQwjACcANQCJAJ0AngCsALoAXwGBAXsBKwD//wAAAAAAAAEEAAAAAAAAAAABHUZpdCBDb21wYXJpc29uIGZvciBEYXRhc2V0IDEzATFSaXNrQmV0YUdlbmVyYWwoMC4xNDA3OCwwLjE0NDA3LDAuMDU2MDAwLDAuMTg0MDApAQEQAAIAAQpTdGF0aXN0aWNzAwEBAP8BAQEBAQABAQEABAAAAAEBAQEBAAEBAQAEAAAACtkAAe0AAAcBABIBAB0BACgBADMBAD4BAEkBAFQBABIABUlucHV0AAAA/wAA/wEBAAIAGAALQmV0YUdlbmVyYWwAAQD/3BQ8AQAAAgAJAAAAAk8BAAACAAkAAAADjAEAAAIACQAAAARMAQAAAgAJAAAABTkBAAACAAkAAAAGTgEAAAIACQAAAAcjAQAAAgAJAAAACCkBAAACAAkAAAAJYAEAAAIAZwFxAQEBAwGamZmZmZmpPwAAZmZmZmZm7j8AAAUAAQEBAAEBAQA=",null,null,null,"0\t8\t\t\t\t\t\t\t\t","F1\tFALSE\t1000\t.95",null,null,null,1,true]
["FIT_80328_11648","Dataset 14",{"$f":"#REF!","v":{"$error":"#REF!"}},0,"F1\t0\t0\t-1E+300\t1E+300\t1\t0\t0\t0\t0\t1\t25\tBetaGeneral\tBinomial\tExpon\tExtValue\tGamma\tGeomet\tIntUniform\tInvGauss\tLogistic\tLogLogistic\tLognorm\tNegBin\tNormal\tPareto\tPearson5\tPearson6\tPert\tPoisson\tTriang\tUniform\tWeibull\tExtValueMin\tLaplace\tLevy\tKumaraswamy\t0\t1\t-1\t1\t0\t1\t0\t0\t0","GF1_rK0qDwEAEwB3AQwjACcANQCBAJUAlgCkALIAUQFzAW0BKwD//wAAAAAAAAEEAAAAAAAAAAABHUZpdCBDb21wYXJpc29uIGZvciBEYXRhc2V0IDE0ASlSaXNrRXhwb24oMC4wNzUyMDAsUmlza1NoaWZ0KC0wLjAwNzA0MDApKQEBEAACAAEKU3RhdGlzdGljcwMBAQD/AQEBAQEAAQEBAAQAAAABAQEBAQABAQEABAAAAArRAAHlAAD5AAAEAQAPAQAaAQAlAQAwAQA7AQBGAQASAAVJbnB1dAAAAP8AAP8BAQACABIABUV4cG9uAAEA/9wUPAEAAAIACQAAAAJPAQAAAgAJAAAAA4wBAAACAAkAAAAETAEAAAIACQAAAAU5AQAAAgAJAAAABk4BAAACAAkAAAAHIwEAAAIACQAAAAgpAQAAAgAJAAAACWABAAACAFkBYwEBAQMBmpmZmZmZqT8AAGZmZmZmZu4/AAAFAAEBAQABAQEA",null,null,null,"0\t8\t\t\t\t\t\t\t\t","F1\tFALSE\t1000\t.95",null,null,null,1,true]
["FIT_55DCB_A8BF1","Dataset 15",{"$f":"#REF!","v":{"$error":"#REF!"}},0,"F1\t0\t0\t-1E+300\t1E+300\t1\t0\t0\t0\t0\t1\t25\tBetaGeneral\tBinomial\tExpon\tExtValue\tGamma\tGeomet\tIntUniform\tInvGauss\tLogistic\tLogLogistic\tLognorm\tNegBin\tNormal\tPareto\tPearson5\tPearson6\tPert\tPoisson\tTriang\tUniform\tWeibull\tExtValueMin\tLaplace\tLevy\tKumaraswamy\t0\t1\t-1\t1\t0\t1\t0\t0\t0","GF1_rK0qDwEAEwBvAQwjACcANQB3AIsAjACaAKgASQFrAWUBKwD//wAAAAAAAAEEAAAAAAAAAAABHUZpdCBDb21wYXJpc29uIGZvciBEYXRhc2V0IDE1AR9SaXNrVW5pZm9ybSgtMC4wMDM0NzUwLDAuMjcxMTcpAQEQAAIAAQpTdGF0aXN0aWNzAwEBAP8BAQEBAQABAQEABAAAAAEBAQEBAAEBAQAEAAAACscAAdsAAPEAAPwAAAcBABIBAB0BACgBADMBAD4BABIABUlucHV0AAAA/wAA/wEBAAIAFAAHVW5pZm9ybQABAP/cFDwBAAACAAkAAAACTwEAAAIACQAAAAOMAQAAAgAJAAAABEwBAAACAAkAAAAFOQEAAAIACQAAAAZOAQAAAgAJAAAAByMBAAACAAkAAAAIKQEAAAIACQAAAAlgAQAAAgBRAVsBAQEDAZqZmZmZmak/AABmZmZmZmbuPwAABQABAQEAAQEBAA==",null,null,null,"0\t8\t\t\t\t\t\t\t\t","F1\tFALSE\t1000\t.95",null,null,null,1,true]
["FIT_4D8DD_E5B3A","Dataset 16",{"$f":"#REF!","v":{"$error":"#REF!"}},0,"F1\t0\t0\t-1E+300\t1E+300\t1\t0\t0\t0\t0\t1\t25\tBetaGeneral\tBinomial\tExpon\tExtValue\tGamma\tGeomet\tIntUniform\tInvGauss\tLogistic\tLogLogistic\tLognorm\tNegBin\tNormal\tPareto\tPearson5\tPearson6\tPert\tPoisson\tTriang\tUniform\tWeibull\tExtValueMin\tLaplace\tLevy\tKumaraswamy\t0\t1\t-1\t1\t0\t1\t0\t0\t0","GF1_rK0qDwEAEwCEAQwjACcANQCLAJ8AoACuALwAXgGAAXoBKwD//wAAAAAAAAEEAAAAAAAAAAABHUZpdCBDb21wYXJpc29uIGZvciBEYXRhc2V0IDE2ATNSaXNrSW52R2F1c3MoMC4wNTc2MjIsMC4wMzIyNDIsUmlza1NoaWZ0KDAuMDM1MzM4KSkBARAAAgABClN0YXRpc3RpY3MDAQEA/wEBAQEBAAEBAQAEAAAAAQEBAQEAAQEBAAQAAAAK2wAB7wAABgEAEQEAHAEAJwEAMgEAPQEASAEAUwEAEgAFSW5wdXQAAAD/AAD/AQEAAgAVAAhJbnZHYXVzcwABAP/cFDwBAAACAAkAAAACTwEAAAIACQAAAAOMAQAAAgAJAAAABEwBAAACAAkAAAAFOQEAAAIACQAAAAZOAQAAAgAJAAAAByMBAAACAAkAAAAIKQEAAAIACQAAAAlgAQAAAgBmAXABAQEDAZqZmZmZmak/AABmZmZmZmbuPwAABQABAQEAAQEBAA==",null,null,null,"0\t8\t\t\t\t\t\t\t\t","F1\tFALSE\t1000\t.95",null,null,null,1,true]
["FIT_3D40E_AFA2D","Dataset 17",{"$f":"#REF!","v":{"$error":"#REF!"}},0,"F1\t0\t0\t-1E+300\t1E+300\t1\t0\t0\t0\t0\t1\t25\tBetaGeneral\tBinomial\tExpon\tExtValue\tGamma\tGeomet\tIntUniform\tInvGauss\tLogistic\tLogLogistic\tLognorm\tNegBin\tNormal\tPareto\tPearson5\tPearson6\tPert\tPoisson\tTriang\tUniform\tWeibull\tExtValueMin\tLaplace\tLevy\tKumaraswamy\t0\t1\t-1\t1\t0\t1\t0\t0\t0","GF1_rK0qDwEAEwCFAQwjACcANQCJAJ0AngCsALoAXwGBAXsBKwD//wAAAAAAAAEEAAAAAAAAAAABHUZpdCBDb21wYXJpc29uIGZvciBEYXRhc2V0IDE3ATFSaXNrQmV0YUdlbmVyYWwoMC4xNDgzMSwwLjE1NzQyLDAuMDQ2OTAwLDAuMTk1MzApAQEQAAIAAQpTdGF0aXN0aWNzAwEBAP8BAQEBAQABAQEABAAAAAEBAQEBAAEBAQAEAAAACtkAAe0AAAcBABIBAB0BACgBADMBAD4BAEkBAFQBABIABUlucHV0AAAA/wAA/wEBAAIAGAALQmV0YUdlbmVyYWwAAQD/3BQ8AQAAAgAJAAAAAk8BAAACAAkAAAADjAEAAAIACQAAAARMAQAAAgAJAAAABTkBAAACAAkAAAAGTgEAAAIACQAAAAcjAQAAAgAJAAAACCkBAAACAAkAAAAJYAEAAAIAZwFxAQEBAwGamZmZmZmpPwAAZmZmZmZm7j8AAAUAAQEBAAEBAQA=",null,null,null,"0\t8\t\t\t\t\t\t\t\t","F1\tFALSE\t1000\t.95",null,null,null,1,true]
["FIT_4A968_262E","Dataset 18",{"$f":"#REF!","v":{"$error":"#REF!"}},0,"F1\t0\t0\t-1E+300\t1E+300\t1\t0\t0\t0\t0\t1\t25\tBetaGeneral\tBinomial\tExpon\tExtValue\tGamma\tGeomet\tIntUniform\tInvGauss\tLogistic\tLogLogistic\tLognorm\tNegBin\tNormal\tPareto\tPearson5\tPearson6\tPert\tPoisson\tTriang\tUniform\tWeibull\tExtValueMin\tLaplace\tLevy\tKumaraswamy\t0\t1\t-1\t1\t0\t1\t0\t0\t0","GF1_rK0qDwEAEwBtAQwjACcANQB1AIkAigCYAKYARwFpAWMBKwD//wAAAAAAAAEEAAAAAAAAAAABHUZpdCBDb21wYXJpc29uIGZvciBEYXRhc2V0IDE4AR1SaXNrVW5pZm9ybSgwLjAzNTE3NSwwLjE1MjMyKQEBEAACAAEKU3RhdGlzdGljcwMBAQD/AQEBAQEAAQEBAAQAAAABAQEBAQABAQEABAAAAArFAAHZAADvAAD6AAAFAQAQAQAbAQAmAQAxAQA8AQASAAVJbnB1dAAAAP8AAP8BAQACABQAB1VuaWZvcm0AAQD/3BQ8AQAAAgAJAAAAAk8BAAACAAkAAAADjAEAAAIACQAAAARMAQAAAgAJAAAABTkBAAACAAkAAAAGTgEAAAIACQAAAAcjAQAAAgAJAAAACCkBAAACAAkAAAAJYAEAAAIATwFZAQEBAwGamZmZmZmpPwAAZmZmZmZm7j8AAAUAAQEBAAEBAQA=",null,null,null,"0\t8\t\t\t\t\t\t\t\t","F1\tFALSE\t1000\t.95",null,null,null,1,true]
["FIT_3007D_A494E","Dataset 19",{"$f":"#REF!","v":{"$error":"#REF!"}},0,"F1\t0\t0\t-1E+300\t1E+300\t1\t0\t0\t0\t0\t1\t25\tBetaGeneral\tBinomial\tExpon\tExtValue\tGamma\tGeomet\tIntUniform\tInvGauss\tLogistic\tLogLogistic\tLognorm\tNegBin\tNormal\tPareto\tPearson5\tPearson6\tPert\tPoisson\tTriang\tUniform\tWeibull\tExtValueMin\tLaplace\tLevy\tKumaraswamy\t0\t1\t-1\t1\t0\t1\t0\t0\t0","GF1_rK0qDwEAEwBtAQwjACcANQB1AIkAigCYAKYARwFpAWMBKwD//wAAAAAAAAEEAAAAAAAAAAABHUZpdCBDb21wYXJpc29uIGZvciBEYXRhc2V0IDE5AR1SaXNrVW5pZm9ybSgwLjAzNTE3NSwwLjE1MjMyKQEBEAACAAEKU3RhdGlzdGljcwMBAQD/AQEBAQEAAQEBAAQAAAABAQEBAQABAQEABAAAAArFAAHZAADvAAD6AAAFAQAQAQAbAQAmAQAxAQA8AQASAAVJbnB1dAAAAP8AAP8BAQACABQAB1VuaWZvcm0AAQD/3BQ8AQAAAgAJAAAAAk8BAAACAAkAAAADjAEAAAIACQAAAARMAQAAAgAJAAAABTkBAAACAAkAAAAGTgEAAAIACQAAAAcjAQAAAgAJAAAACCkBAAACAAkAAAAJYAEAAAIATwFZAQEBAwGamZmZmZmpPwAAZmZmZmZm7j8AAAUAAQEBAAEBAQA=",null,null,null,"0\t8\t\t\t\t\t\t\t\t","F1\tFALSE\t1000\t.95",null,null,null,1,true]
["FIT_4CD0E_958AB","Dataset 20",{"$f":"#REF!","v":{"$error":"#REF!"}},0,"F1\t1\t0\t-1E+300\t1E+300\t1\t0\t0\t0\t0\t1\t25\tBetaGeneral\tBinomial\tExpon\tExtValue\tGamma\tGeomet\tIntUniform\tInvGauss\tLogistic\tLogLogistic\tLognorm\tNegBin\tNormal\tPareto\tPearson5\tPearson6\tPert\tPoisson\tTriang\tUniform\tWeibull\tExtValueMin\tLaplace\tLevy\tKumaraswamy\t0\t1\t-1\t1\t0\t1\t0\t0\t0","GF1_rK0qDwEAEwBjAQwjACcANQBrAH8AgACOAJwAPQFfAVkBKwD//wAAAAAAAAEEAAAAAAAAAAABHUZpdCBDb21wYXJpc29uIGZvciBEYXRhc2V0IDIwARNSaXNrUG9pc3NvbigxLjIwMDApAQEQAAIAAQpTdGF0aXN0aWNzAwEBAP8BAQEBAQABAQEABAAAAAEBAQEBAAEBAQAEAAAACrsAAc8AAOUAAPAAAPsAAAYBABEBABwBACcBADIBABIABUlucHV0AAAA/wAA/wEBAAIAFAAHUG9pc3NvbgABAP/cFDwBAAACAAkAAAACTwEAAAIACQAAAAOMAQAAAgAJAAAABEwBAAACAAkAAAAFOQEAAAIACQAAAAZOAQAAAgAJAAAAByMBAAACAAkAAAAIKQEAAAIACQAAAAlgAQAAAgBFAU8BAQEDAZqZmZmZmak/AABmZmZmZmbuPwAABQABAQEAAQEBAA==",null,null,null,"0\t8\t\t\t\t\t\t\t\t","F1\tFALSE\t1000\t.95",null,null,null,4,true]
["FIT_B6A48_2EAB1","Dataset 21",{"$f":"#REF!","v":{"$error":"#REF!"}},0,"F1\t1\t0\t-1E+300\t1E+300\t1\t0\t0\t0\t0\t1\t25\tBetaGeneral\tBinomial\tExpon\tExtValue\tGamma\tGeomet\tIntUniform\tInvGauss\tLogistic\tLogLogistic\tLognorm\tNegBin\tNormal\tPareto\tPearson5\tPearson6\tPert\tPoisson\tTriang\tUniform\tWeibull\tExtValueMin\tLaplace\tLevy\tKumaraswamy\t0\t1\t-1\t1\t0\t1\t0\t0\t0","GF1_rK0qDwEAEwBkAQwjACcANQBsAIAAgQCPAJ0APgFgAVoBKwD//wAAAAAAAAEEAAAAAAAAAAABHUZpdCBDb21wYXJpc29uIGZvciBEYXRhc2V0IDIxARRSaXNrUG9pc3NvbigwLjIwMDAwKQEBEAACAAEKU3RhdGlzdGljcwMBAQD/AQEBAQEAAQEBAAQAAAABAQEBAQABAQEABAAAAAq8AAHQAADmAADxAAD8AAAHAQASAQAdAQAoAQAzAQASAAVJbnB1dAAAAP8AAP8BAQACABQAB1BvaXNzb24AAQD/3BQ8AQAAAgAJAAAAAk8BAAACAAkAAAADjAEAAAIACQAAAARMAQAAAgAJAAAABTkBAAACAAkAAAAGTgEAAAIACQAAAAcjAQAAAgAJAAAACCkBAAACAAkAAAAJYAEAAAIARgFQAQEBAwGamZmZmZmpPwAAZmZmZmZm7j8AAAUAAQEBAAEBAQA=",null,null,null,"0\t8\t\t\t\t\t\t\t\t","F1\tFALSE\t1000\t.95",null,null,null,4,true]
["FIT_7A1A1_1784E","Dataset 22",{"$f":"#REF!","v":{"$error":"#REF!"}},0,"F1\t0\t0\t-1E+300\t1E+300\t1\t0\t0\t0\t0\t1\t25\tBetaGeneral\tBinomial\tExpon\tExtValue\tGamma\tGeomet\tIntUniform\tInvGauss\tLogistic\tLogLogistic\tLognorm\tNegBin\tNormal\tPareto\tPearson5\tPearson6\tPert\tPoisson\tTriang\tUniform\tWeibull\tExtValueMin\tLaplace\tLevy\tKumaraswamy\t0\t1\t-1\t1\t0\t1\t0\t0\t0","GF1_rK0qDwEAEwBsAQwjACcANQB0AIgAiQCXAKUARgFoAWIBKwD//wAAAAAAAAEEAAAAAAAAAAABHUZpdCBDb21wYXJpc29uIGZvciBEYXRhc2V0IDIyARxSaXNrTGFwbGFjZSgzOS41MDAwLDUxLjA1MzEpAQEQAAIAAQpTdGF0aXN0aWNzAwEBAP8BAQEBAQABAQEABAAAAAEBAQEBAAEBAQAEAAAACsQAAdgAAO4AAPkAAAQBAA8BABoBACUBADABADsBABIABUlucHV0AAAA/wAA/wEBAAIAFAAHTGFwbGFjZQABAP/cFDwBAAACAAkAAAACTwEAAAIACQAAAAOMAQAAAgAJAAAABEwBAAACAAkAAAAFOQEAAAIACQAAAAZOAQAAAgAJAAAAByMBAAACAAkAAAAIKQEAAAIACQAAAAlgAQAAAgBOAVgBAQEDAZqZmZmZmak/AABmZmZmZmbuPwAABQABAQEAAQEBAA==",null,null,null,"0\t8\t\t\t\t\t\t\t\t","F1\tFALSE\t1000\t.95",null,null,null,1,true]
["FIT_F28C9_343E","Dataset 23",{"$f":"#REF!","v":{"$error":"#REF!"}},0,"F1\t1\t0\t-1E+300\t1E+300\t1\t0\t0\t0\t0\t1\t25\tBetaGeneral\tBinomial\tExpon\tExtValue\tGamma\tGeomet\tIntUniform\tInvGauss\tLogistic\tLogLogistic\tLognorm\tNegBin\tNormal\tPareto\tPearson5\tPearson6\tPert\tPoisson\tTriang\tUniform\tWeibull\tExtValueMin\tLaplace\tLevy\tKumaraswamy\t0\t1\t-1\t1\t0\t1\t0\t0\t0","GF1_rK0qDwEAEwBjAQwjACcANQBsAIAAgQCPAJ0APQFfAVkBKwD//wAAAAAAAAEEAAAAAAAAAAABHUZpdCBDb21wYXJpc29uIGZvciBEYXRhc2V0IDIzARRSaXNrR2VvbWV0KDAuMDk4MDM5KQEBEAACAAEKU3RhdGlzdGljcwMBAQD/AQEBAQEAAQEBAAQAAAABAQEBAQABAQEABAAAAAq8AAHQAADlAADwAAD7AAAGAQARAQAcAQAnAQAyAQASAAVJbnB1dAAAAP8AAP8BAQACABMABkdlb21ldAABAP/cFDwBAAACAAkAAAACTwEAAAIACQAAAAOMAQAAAgAJAAAABEwBAAACAAkAAAAFOQEAAAIACQAAAAZOAQAAAgAJAAAAByMBAAACAAkAAAAIKQEAAAIACQAAAAlgAQAAAgBFAU8BAQEDAZqZmZmZmak/AABmZmZmZmbuPwAABQABAQEAAQEBAA==",null,null,null,"0\t8\t\t\t\t\t\t\t\t","F1\tFALSE\t1000\t.95",null,null,null,4,true]
["FIT_1A783_C27C4","Dataset 24",{"$f":"#REF!","v":{"$error":"#REF!"}},0,"F1\t1\t0\t-1E+300\t1E+300\t1\t0\t0\t0\t0\t1\t25\tBetaGeneral\tBinomial\tExpon\tExtValue\tGamma\tGeomet\tIntUniform\tInvGauss\tLogistic\tLogLogistic\tLognorm\tNegBin\tNormal\tPareto\tPearson5\tPearson6\tPert\tPoisson\tTriang\tUniform\tWeibull\tExtValueMin\tLaplace\tLevy\tKumaraswamy\t0\t1\t-1\t1\t0\t1\t0\t0\t0","GF1_rK0qDwEAEwBQAQwjACcANQBYAGwAbQB7AIkAKgFMAUYBKwD//wAAAAAAAAEEAAAAAAAAAAABHUZpdCBDb21wYXJpc29uIGZvciBEYXRhc2V0IDI0AQABARAAAgABClN0YXRpc3RpY3MDAQEA/wEBAQEBAAEBAQAEAAAAAQEBAQEAAQEBAAQAAAAKqAABvAAA0gAA3QAA6AAA8wAA/gAACQEAFAEAHwEAEgAFSW5wdXQAAAD/AAD/AQEAAgAUAAdQb2lzc29uAAEA/9wUPAEAAAIACQAAAAJPAQAAAgAJAAAAA4wBAAACAAkAAAAETAEAAAIACQAAAAU5AQAAAgAJAAAABk4BAAACAAkAAAAHIwEAAAIACQAAAAgpAQAAAgAJAAAACWABAAACADIBPAEBAQMBmpmZmZmZqT8AAGZmZmZmZu4/AAAFAAEBAQABAQEA",null,null,null,"0\t8\t\t\t\t\t\t\t\t","F1\tFALSE\t1000\t.95",null,null,null,4,true]
["FIT_79F5D_6456","Dataset 25",{"$f":"#REF!","v":{"$error":"#REF!"}},0,"F1\t1\t0\t-1E+300\t1E+300\t1\t0\t0\t0\t0\t1\t25\tBetaGeneral\tBinomial\tExpon\tExtValue\tGamma\tGeomet\tIntUniform\tInvGauss\tLogistic\tLogLogistic\tLognorm\tNegBin\tNormal\tPareto\tPearson5\tPearson6\tPert\tPoisson\tTriang\tUniform\tWeibull\tExtValueMin\tLaplace\tLevy\tKumaraswamy\t0\t1\t-1\t1\t0\t1\t0\t0\t0","GF1_rK0qDwEAEwBiAQwjACcANQBrAH8AgACOAJwAPAFeAVgBKwD//wAAAAAAAAEEAAAAAAAAAAABHUZpdCBDb21wYXJpc29uIGZvciBEYXRhc2V0IDI1ARNSaXNrR2VvbWV0KDAuMzMzMzMpAQEQAAIAAQpTdGF0aXN0aWNzAwEBAP8BAQEBAQABAQEABAAAAAEBAQEBAAEBAQAEAAAACrsAAc8AAOQAAO8AAPoAAAUBABABABsBACYBADEBABIABUlucHV0AAAA/wAA/wEBAAIAEwAGR2VvbWV0AAEA/9wUPAEAAAIACQAAAAJPAQAAAgAJAAAAA4wBAAACAAkAAAAETAEAAAIACQAAAAU5AQAAAgAJAAAABk4BAAACAAkAAAAHIwEAAAIACQAAAAgpAQAAAgAJAAAACWABAAACAEQBTgEBAQMBmpmZmZmZqT8AAGZmZmZmZu4/AAAFAAEBAQABAQEA",null,null,null,"0\t8\t\t\t\t\t\t\t\t","F1\tFALSE\t1000\t.95",null,null,null,4,true]

{"sheet":"Tables in STPIS chapter","index":1,"n_rows":0,"n_cols":0,"rows_kept":0,"cut":false,"hidden":false,"merged":[]}

{"sheet":"T7.1 Historical SC performance","index":2,"n_rows":18,"n_cols":8,"rows_kept":18,"cut":false,"hidden":false,"merged":[[6,0,11,0],[12,0,13,0],[15,0,17,0]]}
[]
[]
[null,null,30,23,46,28,33]
[null,null,0,2,0,0,2]
[null,null,5,6,12,7,1]
["Parameter","Sub-parameter",2020,2021,2022,2023,2024,"2020-24 average"]
["Unplanned outage circuit event rate","Lines event rate - fault",{"$f":"'2020-24 actual performance data'!C23","v":0.17599999999999999},{"$f":"'2020-24 actual performance data'!D23","v":0.18253968253968253},{"$f":"'2020-24 actual performance data'!E23","v":6.3492063492063489E-2},{"$f":"'2020-24 actual performance data'!F23","v":5.3030303030303032E-2},{"$f":"'2020-24 actual performance data'!G23","v":9.0909090909090912E-2},{"$f":"AVERAGE(C7:G7)","v":0.11319422799422799}]
[null,"Transformer event rate - fault",{"$f":"'2020-24 actual performance data'!C24","v":0.15625},{"$f":"'2020-24 actual performance data'!D24","v":0.1984126984126984},{"$f":"'2020-24 actual performance data'!E24","v":7.1428571428571425E-2},{"$f":"'2020-24 actual performance data'!F24","v":4.8000000000000001E-2},{"$f":"'2020-24 actual performance data'!G24","v":7.6335877862595422E-2},{"$f":"AVERAGE(C8:G8)","v":0.11008542954077302}]
[null,"Reactive plant event rate - fault",{"$f":"'2020-24 actual performance data'!C25","v":0.22535211267605634},{"$f":"'2020-24 actual performance data'!D25","v":0.21428571428571427},{"$f":"'2020-24 actual performance data'!E25","v":4.1666666666666664E-2},{"$f":"'2020-24 actual performance data'!F25","v":0.12328767123287671},{"$f":"'2020-24 actual performance data'!G25","v":5.4054054054054057E-2},0.1317292437830736]
[null,"Lines event rate - forced",{"$f":"'2020-24 actual performance data'!C26","v":7.1999999999999995E-2},{"$f":"'2020-24 actual performance data'!D26","v":0.25396825396825395},{"$f":"'2020-24 actual performance data'!E26","v":5.5555555555555552E-2},{"$f":"'2020-24 actual performance data'!F26","v":2.2727272727272728E-2},{"$f":"'2020-24 actual performance data'!G26","v":7.575757575757576E-3},8.2365367965367947E-2]
[null,"Transformer event rate - forced",{"$f":"'2020-24 actual performance data'!C27","v":0.1171875},{"$f":"'2020-24 actual performance data'!D27","v":0.13492063492063491},{"$f":"'2020-24 actual performance data'!E27","v":8.7301587301587297E-2},{"$f":"'2020-24 actual performance data'!F27","v":5.6000000000000001E-2},{"$f":"'2020-24 actual performance data'!G27","v":6.8702290076335881E-2},9.2822402459711614E-2]
[null,"Reactive plant event rate - forced",{"$f":"'2020-24 actual performance data'!C28","v":0.19718309859154928},{"$f":"'2020-24 actual performance data'!D28","v":0.1},{"$f":"'2020-24 actual performance data'!E28","v":5.5555555555555552E-2},{"$f":"'2020-24 actual performance data'!F28","v":6.8493150684931503E-2},{"$f":"'2020-24 actual performance data'!G28","v":4.0540540540540543E-2},9.2354469074515361E-2]
["Loss of supply event frequency","Number of events greater than 0.05 minutes per annum",{"$f":"'2020-24 actual performance data'!C29","v":3},{"$f":"'2020-24 actual performance data'!D29","v":0},{"$f":"'2020-24 actual performance data'!E29","v":2},{"$f":"'2020-24 actual performance data'!F29","v":0},{"$f":"'2020-24 actual performance data'!G29","v":1},1.2]
[null,"Number of events greater than 0.30 minutes per annum",{"$f":"'2020-24 actual performance data'!C30","v":1},{"$f":"'2020-24 actual performance data'!D30","v":0},{"$f":"'2020-24 actual performance data'!E30","v":0},{"$f":"'2020-24 actual performance data'!F30","v":0},{"$f":"'2020-24 actual performance data'!G30","v":0},0.2]
["Average outage duration","Average outage duration",{"$f":"'2020-24 actual performance data'!C31","v":57.6},{"$f":"'2020-24 actual performance data'!D31","v":37},{"$f":"'2020-24 actual performance data'!E31","v":39.5},{"$f":"'2020-24 actual performance data'!F31","v":47.849999997112889},{"$f":"'2020-24 actual performance data'!G31","v":169.5},70.289999999422577]
["Proper operation of equipment","Failure of protection system",{"$f":"'2020-24 actual performance data'!C32","v":23},{"$f":"'2020-24 actual performance data'!D32","v":16},{"$f":"'2020-24 actual performance data'!E32","v":6},{"$f":"'2020-24 actual performance data'!F32","v":1},{"$f":"'2020-24 actual performance data'!G32","v":0},9.1999999999999993]
[null,"Material failure of SCADA",{"$f":"'2020-24 actual performance data'!C33","v":0},{"$f":"'2020-24 actual performance data'!D33","v":3},{"$f":"'2020-24 actual performance data'!E33","v":2},{"$f":"'2020-24 actual performance data'!F33","v":1},{"$f":"'2020-24 actual performance data'!G33","v":4},2]
[null,"Incorrect operation isolation of primary or secondary equipment",{"$f":"'2020-24 actual performance data'!C34","v":6},{"$f":"'2020-24 actual performance data'!D34","v":3},{"$f":"'2020-24 actual performance data'!E34","v":0},{"$f":"'2020-24 actual performance data'!F34","v":1},{"$f":"'2020-24 actual performance data'!G34","v":0},2]

{"sheet":"F7.1-7.11 Performance vs target","index":3,"n_rows":83,"n_cols":17,"rows_kept":83,"cut":false,"hidden":false,"merged":[]}
[]
[]
[null,null,null,30,23,46,28,33]
[null,null,null,0,2,0,0,2]
[null,null,null,5,6,12,7,1]
["Parameter","Sub-parameter",null,"2020","2021","2022","2023","2024"]
["Unplanned outage curcuit event rate","Lines event rate - fault","Performance",{"$f":"INDEX('T7.1 Historical SC performance'!C$7:C$18,MATCH($B7,'T7.1 Historical SC performance'!$B$7:$B$18,0))","v":0.17599999999999999},{"$f":"INDEX('T7.1 Historical SC performance'!D$7:D$18,MATCH($B7,'T7.1 Historical SC performance'!$B$7:$B$18,0))","v":0.18253968253968253},{"$f":"INDEX('T7.1 Historical SC performance'!E$7:E$18,MATCH($B7,'T7.1 Historical SC performance'!$B$7:$B$18,0))","v":6.3492063492063489E-2},{"$f":"INDEX('T7.1 Historical SC performance'!F$7:F$18,MATCH($B7,'T7.1 Historical SC performance'!$B$7:$B$18,0))","v":5.3030303030303032E-2},{"$f":"INDEX('T7.1 Historical SC performance'!G$7:G$18,MATCH($B7,'T7.1 Historical SC performance'!$B$7:$B$18,0))","v":9.0909090909090912E-2},null,"lines",null,null,null,null,null,"lines"]
["Unplanned outage curcuit event rate","Lines event rate - fault","Cap ",0.11600000000000001,0.11600000000000001,0.11600000000000001,0.11600000000000001,0.11600000000000001,null,"fault",null,null,null,null,null,"forced"]
["Unplanned outage curcuit event rate","Lines event rate - fault","Target",0.17380000000000001,0.17380000000000001,0.17380000000000001,0.17380000000000001,0.17380000000000001]
["Unplanned outage curcuit event rate","Lines event rate - fault","Collar",0.23200000000000001,0.23200000000000001,0.23200000000000001,0.23200000000000001,0.23200000000000001]
["Unplanned outage curcuit event rate","Transformer event rate - fault","Performance",{"$f":"INDEX('T7.1 Historical SC performance'!C$7:C$18,MATCH($B11,'T7.1 Historical SC performance'!$B$7:$B$18,0))","v":0.15625},{"$f":"INDEX('T7.1 Historical SC performance'!D$7:D$18,MATCH($B11,'T7.1 Historical SC performance'!$B$7:$B$18,0))","v":0.1984126984126984},{"$f":"INDEX('T7.1 Historical SC performance'!E$7:E$18,MATCH($B11,'T7.1 Historical SC performance'!$B$7:$B$18,0))","v":7.1428571428571425E-2},{"$f":"INDEX('T7.1 Historical SC performance'!F$7:F$18,MATCH($B11,'T7.1 Historical SC performance'!$B$7:$B$18,0))","v":4.8000000000000001E-2},{"$f":"INDEX('T7.1 Historical SC performance'!G$7:G$18,MATCH($B11,'T7.1 Historical SC performance'!$B$7:$B$18,0))","v":7.6335877862595422E-2}]
["Unplanned outage curcuit event rate","Transformer event rate - fault","Cap ",6.6000000000000003E-2,6.6000000000000003E-2,6.6000000000000003E-2,6.6000000000000003E-2,6.6000000000000003E-2]
["Unplanned outage curcuit event rate","Transformer event rate - fault","Target",0.11700000000000001,0.11700000000000001,0.11700000000000001,0.11700000000000001,0.11700000000000001]
["Unplanned outage curcuit event rate","Transformer event rate - fault","Collar",0.17499999999999999,0.17499999999999999,0.17499999999999999,0.17499999999999999,0.17499999999999999]
["Unplanned outage curcuit event rate","Reactive plant event rate - fault","Performance",{"$f":"INDEX('T7.1 Historical SC performance'!C$7:C$18,MATCH($B15,'T7.1 Historical SC performance'!$B$7:$B$18,0))","v":0.22535211267605634},{"$f":"INDEX('T7.1 Historical SC performance'!D$7:D$18,MATCH($B15,'T7.1 Historical SC performance'!$B$7:$B$18,0))","v":0.21428571428571427},{"$f":"INDEX('T7.1 Historical SC performance'!E$7:E$18,MATCH($B15,'T7.1 Historical SC performance'!$B$7:$B$18,0))","v":4.1666666666666664E-2},{"$f":"INDEX('T7.1 Historical SC performance'!F$7:F$18,MATCH($B15,'T7.1 Historical SC performance'!$B$7:$B$18,0))","v":0.12328767123287671},{"$f":"INDEX('T7.1 Historical SC performance'!G$7:G$18,MATCH($B15,'T7.1 Historical SC performance'!$B$7:$B$18,0))","v":5.4054054054054057E-2}]
["Unplanned outage curcuit event rate","Reactive plant event rate - fault","Cap ",0.155,0.155,0.155,0.155,0.155]
["Unplanned outage curcuit event rate","Reactive plant event rate - fault","Target",0.1988,0.1988,0.1988,0.1988,0.1988,null,"trans",null,null,null,null,null,"trans"]
["Unplanned outage curcuit event rate","Reactive plant event rate - fault","Collar",0.317,0.317,0.317,0.317,0.317,null,"fault",null,null,null,null,null,"forced"]
["Unplanned outage curcuit event rate","Lines event rate - forced","Performance",{"$f":"INDEX('T7.1 Historical SC performance'!C$7:C$18,MATCH($B19,'T7.1 Historical SC performance'!$B$7:$B$18,0))","v":7.1999999999999995E-2},{"$f":"INDEX('T7.1 Historical SC performance'!D$7:D$18,MATCH($B19,'T7.1 Historical SC performance'!$B$7:$B$18,0))","v":0.25396825396825395},{"$f":"INDEX('T7.1 Historical SC performance'!E$7:E$18,MATCH($B19,'T7.1 Historical SC performance'!$B$7:$B$18,0))","v":5.5555555555555552E-2},{"$f":"INDEX('T7.1 Historical SC performance'!F$7:F$18,MATCH($B19,'T7.1 Historical SC performance'!$B$7:$B$18,0))","v":2.2727272727272728E-2},{"$f":"INDEX('T7.1 Historical SC performance'!G$7:G$18,MATCH($B19,'T7.1 Historical SC performance'!$B$7:$B$18,0))","v":7.575757575757576E-3}]
["Unplanned outage curcuit event rate","Lines event rate - forced","Cap ",1.9E-2,1.9E-2,1.9E-2,1.9E-2,1.9E-2]
["Unplanned outage curcuit event rate","Lines event rate - forced","Target",0.11840000000000001,0.11840000000000001,0.11840000000000001,0.11840000000000001,0.11840000000000001]
["Unplanned outage curcuit event rate","Lines event rate - forced","Collar",0.218,0.218,0.218,0.218,0.218]
["Unplanned outage curcuit event rate","Transformer event rate - forced","Performance",{"$f":"INDEX('T7.1 Historical SC performance'!C$7:C$18,MATCH($B23,'T7.1 Historical SC performance'!$B$7:$B$18,0))","v":0.1171875},{"$f":"INDEX('T7.1 Historical SC performance'!D$7:D$18,MATCH($B23,'T7.1 Historical SC performance'!$B$7:$B$18,0))","v":0.13492063492063491},{"$f":"INDEX('T7.1 Historical SC performance'!E$7:E$18,MATCH($B23,'T7.1 Historical SC performance'!$B$7:$B$18,0))","v":8.7301587301587297E-2},{"$f":"INDEX('T7.1 Historical SC performance'!F$7:F$18,MATCH($B23,'T7.1 Historical SC performance'!$B$7:$B$18,0))","v":5.6000000000000001E-2},{"$f":"INDEX('T7.1 Historical SC performance'!G$7:G$18,MATCH($B23,'T7.1 Historical SC performance'!$B$7:$B$18,0))","v":6.8702290076335881E-2}]
["Unplanned outage curcuit event rate","Transformer event rate - forced","Cap ",7.2999999999999995E-2,7.2999999999999995E-2,7.2999999999999995E-2,7.2999999999999995E-2,7.2999999999999995E-2]
["Unplanned outage curcuit event rate","Transformer event rate - forced","Target",0.11849999999999999,0.11849999999999999,0.11849999999999999,0.11849999999999999,0.11849999999999999]
["Unplanned outage curcuit event rate","Transformer event rate - forced","Collar",0.161,0.161,0.161,0.161,0.161]
["Unplanned outage curcuit event rate","Reactive plant event rate - forced","Performance",{"$f":"INDEX('T7.1 Historical SC performance'!C$7:C$18,MATCH($B27,'T7.1 Historical SC performance'!$B$7:$B$18,0))","v":0.19718309859154928},{"$f":"INDEX('T7.1 Historical SC performance'!D$7:D$18,MATCH($B27,'T7.1 Historical SC performance'!$B$7:$B$18,0))","v":0.1},{"$f":"INDEX('T7.1 Historical SC performance'!E$7:E$18,MATCH($B27,'T7.1 Historical SC performance'!$B$7:$B$18,0))","v":5.5555555555555552E-2},{"$f":"INDEX('T7.1 Historical SC performance'!F$7:F$18,MATCH($B27,'T7.1 Historical SC performance'!$B$7:$B$18,0))","v":6.8493150684931503E-2},{"$f":"INDEX('T7.1 Historical SC performance'!G$7:G$18,MATCH($B27,'T7.1 Historical SC performance'!$B$7:$B$18,0))","v":4.0540540540540543E-2}]
["Unplanned outage curcuit event rate","Reactive plant event rate - forced","Cap ",0.247,0.247,0.247,0.247,0.247]
["Unplanned outage curcuit event rate","Reactive plant event rate - forced","Target",0.30690000000000001,0.30690000000000001,0.30690000000000001,0.30690000000000001,0.30690000000000001]
["Unplanned outage curcuit event rate","Reactive plant event rate - forced","Collar",0.36599999999999999,0.36599999999999999,0.36599999999999999,0.36599999999999999,0.36599999999999999,null,"react",null,null,null,null,null,"react"]
["Loss of supply event frequency","Number of events greater than 0.05 minutes per annum","Performance",{"$f":"INDEX('T7.1 Historical SC performance'!C$7:C$18,MATCH($B31,'T7.1 Historical SC performance'!$B$7:$B$18,0))","v":3},{"$f":"INDEX('T7.1 Historical SC performance'!D$7:D$18,MATCH($B31,'T7.1 Historical SC performance'!$B$7:$B$18,0))","v":0},{"$f":"INDEX('T7.1 Historical SC performance'!E$7:E$18,MATCH($B31,'T7.1 Historical SC performance'!$B$7:$B$18,0))","v":2},{"$f":"INDEX('T7.1 Historical SC performance'!F$7:F$18,MATCH($B31,'T7.1 Historical SC performance'!$B$7:$B$18,0))","v":0},{"$f":"INDEX('T7.1 Historical SC performance'!G$7:G$18,MATCH($B31,'T7.1 Historical SC performance'!$B$7:$B$18,0))","v":1},null,"fault",null,null,null,null,null,"forced"]
["Loss of supply event frequency","Number of events greater than 0.05 minutes per annum","Cap ",0,0,0,0,0]
["Loss of supply event frequency","Number of events greater than 0.05 minutes per annum","Target",1,1,1,1,1]
["Loss of supply event frequency","Number of events greater than 0.05 minutes per annum","Collar",3,3,3,3,3]
["Loss of supply event frequency","Number of events greater than 0.30 minutes per annum","Performance",{"$f":"INDEX('T7.1 Historical SC performance'!C$7:C$18,MATCH($B35,'T7.1 Historical SC performance'!$B$7:$B$18,0))","v":1},{"$f":"INDEX('T7.1 Historical SC performance'!D$7:D$18,MATCH($B35,'T7.1 Historical SC performance'!$B$7:$B$18,0))","v":0},{"$f":"INDEX('T7.1 Historical SC performance'!E$7:E$18,MATCH($B35,'T7.1 Historical SC performance'!$B$7:$B$18,0))","v":0},{"$f":"INDEX('T7.1 Historical SC performance'!F$7:F$18,MATCH($B35,'T7.1 Historical SC performance'!$B$7:$B$18,0))","v":0},{"$f":"INDEX('T7.1 Historical SC performance'!G$7:G$18,MATCH($B35,'T7.1 Historical SC performance'!$B$7:$B$18,0))","v":0}]
["Loss of supply event frequency","Number of events greater than 0.30 minutes per annum","Cap ",0,0,0,0,0]
["Loss of supply event frequency","Number of events greater than 0.30 minutes per annum","Target",1,1,1,1,1]
["Loss of supply event frequency","Number of events greater than 0.30 minutes per annum","Collar",2,2,2,2,2]
["Average outage duration","Average outage duration","Performance",{"$f":"INDEX('T7.1 Historical SC performance'!C$7:C$18,MATCH($B39,'T7.1 Historical SC performance'!$B$7:$B$18,0))","v":57.6},{"$f":"INDEX('T7.1 Historical SC performance'!D$7:D$18,MATCH($B39,'T7.1 Historical SC performance'!$B$7:$B$18,0))","v":37},{"$f":"INDEX('T7.1 Historical SC performance'!E$7:E$18,MATCH($B39,'T7.1 Historical SC performance'!$B$7:$B$18,0))","v":39.5},{"$f":"INDEX('T7.1 Historical SC performance'!F$7:F$18,MATCH($B39,'T7.1 Historical SC performance'!$B$7:$B$18,0))","v":47.849999997112889},{"$f":"INDEX('T7.1 Historical SC performance'!G$7:G$18,MATCH($B39,'T7.1 Historical SC performance'!$B$7:$B$18,0))","v":169.5}]
["Average outage duration","Average outage duration","Cap ",19,19,19,19,19]
["Average outage duration","Average outage duration","Target",53,53,53,53,53]
["Average outage duration","Average outage duration","Collar",159,159,159,159,159]
["Proper operation of equipment","Failure of protection system","Performance",{"$f":"INDEX('T7.1 Historical SC performance'!C$7:C$18,MATCH($B43,'T7.1 Historical SC performance'!$B$7:$B$18,0))","v":23},{"$f":"INDEX('T7.1 Historical SC performance'!D$7:D$18,MATCH($B43,'T7.1 Historical SC performance'!$B$7:$B$18,0))","v":16},{"$f":"INDEX('T7.1 Historical SC performance'!E$7:E$18,MATCH($B43,'T7.1 Historical SC performance'!$B$7:$B$18,0))","v":6},{"$f":"INDEX('T7.1 Historical SC performance'!F$7:F$18,MATCH($B43,'T7.1 Historical SC performance'!$B$7:$B$18,0))","v":1},{"$f":"INDEX('T7.1 Historical SC performance'!G$7:G$18,MATCH($B43,'T7.1 Historical SC performance'!$B$7:$B$18,0))","v":0}]
["Proper operation of equipment","Failure of protection system","Cap ",23,23,23,23,23]
["Proper operation of equipment","Failure of protection system","Target",32,32,32,32,32]
["Proper operation of equipment","Failure of protection system","Collar",42,42,42,42,42,null,"LOS"]
["Proper operation of equipment","Material failure of SCADA","Performance",{"$f":"INDEX('T7.1 Historical SC performance'!C$7:C$18,MATCH($B47,'T7.1 Historical SC performance'!$B$7:$B$18,0))","v":0},{"$f":"INDEX('T7.1 Historical SC performance'!D$7:D$18,MATCH($B47,'T7.1 Historical SC performance'!$B$7:$B$18,0))","v":3},{"$f":"INDEX('T7.1 Historical SC performance'!E$7:E$18,MATCH($B47,'T7.1 Historical SC performance'!$B$7:$B$18,0))","v":2},{"$f":"INDEX('T7.1 Historical SC performance'!F$7:F$18,MATCH($B47,'T7.1 Historical SC performance'!$B$7:$B$18,0))","v":1},{"$f":"INDEX('T7.1 Historical SC performance'!G$7:G$18,MATCH($B47,'T7.1 Historical SC performance'!$B$7:$B$18,0))","v":4},null,0.05,null,null,null,null,null,"LOS"]
["Proper operation of equipment","Material failure of SCADA","Cap ",0,0,0,0,0,null,null,null,null,null,null,null,0.3]
["Proper operation of equipment","Material failure of SCADA","Target",1,1,1,1,1]
["Proper operation of equipment","Material failure of SCADA","Collar",2,2,2,2,2]
["Proper operation of equipment","Incorrect operation isolation of primary or secondary equipment","Performance",{"$f":"INDEX('T7.1 Historical SC performance'!C$7:C$18,MATCH($B51,'T7.1 Historical SC performance'!$B$7:$B$18,0))","v":6},{"$f":"INDEX('T7.1 Historical SC performance'!D$7:D$18,MATCH($B51,'T7.1 Historical SC performance'!$B$7:$B$18,0))","v":3},{"$f":"INDEX('T7.1 Historical SC performance'!E$7:E$18,MATCH($B51,'T7.1 Historical SC performance'!$B$7:$B$18,0))","v":0},{"$f":"INDEX('T7.1 Historical SC performance'!F$7:F$18,MATCH($B51,'T7.1 Historical SC performance'!$B$7:$B$18,0))","v":1},{"$f":"INDEX('T7.1 Historical SC performance'!G$7:G$18,MATCH($B51,'T7.1 Historical SC performance'!$B$7:$B$18,0))","v":0}]
["Proper operation of equipment","Incorrect operation isolation of primary or secondary equipment","Cap ",2,2,2,2,2]
["Proper operation of equipment","Incorrect operation isolation of primary or secondary equipment","Target",6,6,6,6,6]
["Proper operation of equipment","Incorrect operation isolation of primary or secondary equipment","Collar",11,11,11,11,11]
[]
[]
[]
[]
[]
[]
[null,null,null,null,null,null,null,null,null,"Outage",null,null,null,null,null,null,"Failure of protect"]
[]
[]
[]
[]
[]
[]
[]
[]
[]
[]
[]
[]
[]
[]
[]
[null,null,null,null,null,null,null,null,null,null,null,null,null,null,null,null,"Incorrect operation"]
[]
[]
[null,null,null,null,null,null,null,null,"material "]
[null,null,null,null,null,null,null,null,"failure"]
[]
[null,null,null,null,null,null,null,null,"SCADA"]

{"sheet":"T7.3 Prop SC target cap & colla","index":4,"n_rows":18,"n_cols":7,"rows_kept":18,"cut":false,"hidden":false,"merged":[[6,0,11,0],[12,0,13,0],[15,0,17,0]]}
[]
[]
[null,null,30,23,{"$f":"#REF!","v":{"$error":"#REF!"}},28]
[null,null,0,2,0,0]
[null,null,5,6,12,7]
["Parameter","Sub-parameter","Preferred distribution","Target","Floor","Cap","Weighting"]
["Unplanned outage curcuit event rate","Lines event rate - fault","Beta General",{"$f":"'T7.1 Historical SC performance'!H7","v":0.11319422799422799},5.3030300000000002E-2,0.1825397,0.2]
[null,"Transformer event rate - fault","Beta General",{"$f":"'T7.1 Historical SC performance'!H8","v":0.11008542954077302},4.8000000000000001E-2,0.19841259999999999,0.2]
[null,"Reactive plant event rate - fault","Uniform",{"$f":"'T7.1 Historical SC performance'!H9","v":0.1317292437830736},9.5216999999999993E-3,0.25749709999999998,0.1]
[null,"Lines event rate - forced","Exponential",{"$f":"'T7.1 Historical SC performance'!H10","v":8.2365367965367947E-2},0,0.21666748999999999,0.1]
[null,"Transformer event rate - forced","Uniform",{"$f":"'T7.1 Historical SC performance'!H11","v":9.2822402459711614E-2},4.2188900000000001E-2,0.14873169999999999,0.1]
[null,"Reactive plant event rate - forced","Inv Gauss",{"$f":"'T7.1 Historical SC performance'!H12","v":9.2354469074515361E-2},4.0359150000000003E-2,0.23499086999999999,0.05]
["Loss of supply event frequency","Number of events greater than 0.05 minutes per annum","Poisson",{"$f":"'T7.1 Historical SC performance'!H13","v":1.2},0,3,0.15]
[null,"Number of events greater than 0.30 minutes per annum","Poisson",{"$f":"'T7.1 Historical SC performance'!H14","v":0.2},0,1,0.15]
["Average outage duration","Average outage duration","Inv Gauss",{"$f":"'T7.1 Historical SC performance'!H15","v":70.289999999422577},36.974150000000002,188.08471,0.2]
["Proper operation of equipment","Failure of protection system","Geometric",{"$f":"'T7.1 Historical SC performance'!H16","v":9.1999999999999993},0,29,0]
[null,"Material failure of SCADA","Geometric",{"$f":"'T7.1 Historical SC performance'!H17","v":2},0,5,0]
[null,"Incorrect operation isolation of primary or secondary equipment","Geometric",{"$f":"'T7.1 Historical SC performance'!H18","v":2},0,7,0]

{"sheet":"Source data","index":5,"n_rows":0,"n_cols":0,"rows_kept":0,"cut":false,"hidden":false,"merged":[]}

{"sheet":"2020-24 actual performance data","index":6,"n_rows":34,"n_cols":12,"rows_kept":34,"cut":false,"hidden":false,"merged":[[20,0,20,6],[0,0,0,11],[2,3,4,3],[2,5,4,5],[2,7,4,7],[2,9,4,9],[2,11,4,11]]}
["Table 1: Raw data transferand outage rate calculation "]
[null,null,2020,2020,2021,2021,2022,2022,2023,2023,2024,2024]
[null,"Lines",{"$f":"'2020'!O3","v":125},null,{"$f":"'2021'!O3","v":126},null,{"$f":"'2022 Q2-4'!O3","v":126},null,{"$f":"'2023'!P9","v":132},null,{"$f":"'2024'!P9","v":132}]
[null,"Transformers",{"$f":"'2020'!O4","v":128},null,{"$f":"'2021'!O4","v":126},null,{"$f":"'2022 Q2-4'!O4","v":126},null,{"$f":"'2023'!P10","v":125},null,{"$f":"'2024'!P10","v":131}]
[null,"Reactive Plant ",{"$f":"'2020'!O5","v":71},null,{"$f":"'2021'!O5","v":70},null,{"$f":"'2022 Q2-4'!O5","v":72},null,{"$f":"'2023'!P11","v":73},null,{"$f":"'2024'!P11","v":74}]
["S","Performance parameter","No. of Outages","Outage Rate","No. of Outages","Outage Rate","No. of Outages","Outage Rate","No. of Outages","Outage Rate","No. of Outages","Outage Rate"]
["S1","line outage - fault ",{"$f":"'2020'!M3","v":22},{"$f":"C7/$C$3","v":0.17599999999999999},{"$f":"'2021'!M3","v":23},{"$f":"E7/$E$3","v":0.18253968253968253},{"$f":"'2022 Q1'!M3+'2022 Q2-4'!M3","v":8},{"$f":"G7/$G$3","v":6.3492063492063489E-2},{"$f":"'2023'!N9","v":7},{"$f":"I7/$I$3","v":5.3030303030303032E-2},{"$f":"'2024'!N9","v":12},{"$f":"K7/$K$3","v":9.0909090909090912E-2}]
["S2","transformer outage - fault",{"$f":"'2020'!M4","v":20},{"$f":"C8/$C$4","v":0.15625},{"$f":"'2021'!M4","v":25},{"$f":"E8/$E$4","v":0.1984126984126984},{"$f":"'2022 Q1'!M4+'2022 Q2-4'!M4","v":9},{"$f":"G8/$G$4","v":7.1428571428571425E-2},{"$f":"'2023'!N10","v":6},{"$f":"I8/$I$4","v":4.8000000000000001E-2},{"$f":"'2024'!N10","v":10},{"$f":"K8/$K$4","v":7.6335877862595422E-2}]
["S3","reactive plant - fault",{"$f":"'2020'!M5","v":16},{"$f":"C9/$C$5","v":0.22535211267605634},{"$f":"'2021'!M5","v":15},{"$f":"E9/$E$5","v":0.21428571428571427},{"$f":"'2022 Q1'!M5+'2022 Q2-4'!M5","v":3},{"$f":"G9/$G$5","v":4.1666666666666664E-2},{"$f":"'2023'!N11","v":9},{"$f":"I9/$I$5","v":0.12328767123287671},{"$f":"'2024'!N11","v":4},{"$f":"K9/$K$5","v":5.4054054054054057E-2}]
["S4","line outage - forced",{"$f":"'2020'!M6","v":9},{"$f":"C10/$C$3","v":7.1999999999999995E-2},{"$f":"'2021'!M6","v":32},{"$f":"E10/$E$3","v":0.25396825396825395},{"$f":"'2022 Q1'!M6+'2022 Q2-4'!M6","v":7},{"$f":"G10/$G$3","v":5.5555555555555552E-2},{"$f":"'2023'!N12","v":3},{"$f":"I10/$I$3","v":2.2727272727272728E-2},{"$f":"'2024'!N12","v":1},{"$f":"K10/$K$3","v":7.575757575757576E-3}]
["S5","transformer outage - forced",{"$f":"'2020'!M7","v":15},{"$f":"C11/$C$4","v":0.1171875},{"$f":"'2021'!M7","v":17},{"$f":"E11/$E$4","v":0.13492063492063491},{"$f":"'2022 Q1'!M7+'2022 Q2-4'!M7","v":11},{"$f":"G11/$G$4","v":8.7301587301587297E-2},{"$f":"'2023'!N13","v":7},{"$f":"I11/$I$4","v":5.6000000000000001E-2},{"$f":"'2024'!N13","v":9},{"$f":"K11/$K$4","v":6.8702290076335881E-2}]
["S6","reactive plant - forced",{"$f":"'2020'!M8","v":14},{"$f":"C12/$C$5","v":0.19718309859154928},{"$f":"'2021'!M8","v":7},{"$f":"E12/$E$5","v":0.1},{"$f":"'2022 Q1'!M8+'2022 Q2-4'!M8","v":4},{"$f":"G12/$G$5","v":5.5555555555555552E-2},{"$f":"'2023'!N14","v":5},{"$f":"I12/$I$5","v":6.8493150684931503E-2},{"$f":"'2024'!N14","v":3},{"$f":"K12/$K$5","v":4.0540540540540543E-2}]
["S7","LOS  >0.05 system minutes",null,{"$f":"'2020'!J10","v":3},null,{"$f":"'2021'!J10","v":0},null,{"$f":"'2022 Q1'!J10+'2022 Q2-4'!J10","v":2},null,{"$f":"'2023'!N17","v":0},null,{"$f":"'2024'!N17","v":1}]
["S8","LOS >0.3 system minutes",null,{"$f":"'2020'!J11","v":1},null,{"$f":"'2021'!J11","v":0},null,{"$f":"'2022 Q1'!J11+'2022 Q2-4'!J11","v":0},null,{"$f":"'2023'!N18","v":0},null,{"$f":"'2024'!N18","v":0}]
["S9","Average outage duration",null,{"$f":"'2020'!N15/'2020'!N14","v":57.6},null,{"$f":"'2021'!M15/'2021'!M14","v":37},null,{"$f":"('2022 Q1'!N15+'2022 Q2-4'!N15)/('2022 Q1'!N14+'2022 Q2-4'!N14)","v":39.5},null,{"$f":"'2023'!N24/'2023'!N22","v":47.849999997112889},null,{"$f":"'2024'!N24/'2024'!N22","v":169.5}]
["S10","Failure of protection system",null,{"$f":"'2020'!J17","v":23},null,{"$f":"'2021'!J17","v":16},null,{"$f":"'2022 Q1'!I17+'2022 Q2-4'!I17","v":6},null,{"$f":"'2023'!N27","v":1},null,{"$f":"'2024'!N27","v":0}]
["S11","Material failure of SCADA ",null,{"$f":"'2020'!J18","v":0},null,{"$f":"'2021'!J18","v":3},null,{"$f":"'2022 Q1'!I18+'2022 Q2-4'!I18","v":2},null,{"$f":"'2023'!N28","v":1},null,{"$f":"'2024'!N28","v":4}]
["S12","Incorrect operational isolation of primary or secondary equipment",null,{"$f":"'2020'!J19","v":6},null,{"$f":"'2021'!J19","v":3},null,{"$f":"'2022 Q1'!I19+'2022 Q2-4'!I19","v":0},null,{"$f":"'2023'!N29","v":1},null,{"$f":"'2024'!N29","v":0}]
[]
[]
["Table 2: STPIS SC Yearly Outage Rates Summary 2020-2024 (Calendar Years)"]
["S","Performance parameter",2020,2021,2022,2023,2024]
["S1","line outage - fault ",{"$f":"D7","v":0.17599999999999999},{"$f":"F7","v":0.18253968253968253},{"$f":"H7","v":6.3492063492063489E-2},{"$f":"J7","v":5.3030303030303032E-2},{"$f":"L7","v":9.0909090909090912E-2}]
["S2","transformer outage - fault",{"$f":"D8","v":0.15625},{"$f":"F8","v":0.1984126984126984},{"$f":"H8","v":7.1428571428571425E-2},{"$f":"J8","v":4.8000000000000001E-2},{"$f":"L8","v":7.6335877862595422E-2}]
["S3","reactive plant - fault",0.22535211267605634,0.21428571428571427,4.1666666666666664E-2,0.12328767123287671,5.4054054054054057E-2]
["S4","line outage - forced",7.1999999999999995E-2,0.25396825396825395,5.5555555555555552E-2,2.2727272727272728E-2,7.575757575757576E-3]
["S5","transformer outage - forced",0.1171875,0.13492063492063491,8.7301587301587297E-2,5.6000000000000001E-2,6.8702290076335881E-2]
["S6","reactive plant - forced",0.19718309859154928,0.1,5.5555555555555552E-2,6.8493150684931503E-2,4.0540540540540543E-2]
["S7","LOS  >0.05 system minutes",3,0,2,0,1]
["S8","LOS >0.3 system minutes",1,0,0,0,0]
["S9","Average outage duration",57.6,37,39.5,47.849999997112889,169.5]
["S10","Failure of protection system",23,16,6,1,0]
["S11","Material failure of SCADA ",0,3,2,1,4]
["S12","Incorrect operational isolation of primary or secondary equipment",6,3,0,1,{"$f":"L18","v":0}]

{"sheet":"2024","index":7,"n_rows":29,"n_cols":21,"rows_kept":29,"cut":false,"hidden":false,"merged":[[22,12,22,14],[22,17,22,19],[3,3,3,4],[4,3,4,4],[6,2,6,6],[6,8,6,10],[6,12,6,15],[6,17,6,20]]}
[]
[null,"Service Standards Performance"]
[]
[null,null,"TNSP","AusNet Services"]
[null,null,"Assessment period",2024]
[]
[null,"S","Performance parameter",null,null,null,null,null,"Average 2024 & 2023",null,null,null,2024,null,null,null,null,2023]
[null,null,"Unplanned circuit outage event rate (%)","Floor","Target","Cap","Revenue at Risk",null,"Performance\n(Without exclusions)","Performance\n(With exclusions)","Exclusions",null,"Performance\n(Without exclusions)","Performance\n(With exclusions)","Exclusions","No. of defined circuits",null,"Performance\n(Without exclusions)","Performance\n(With exclusions)","Exclusions","No. of defined circuits"]
[null,"S1","Lines event rate – fault ",22.37,17.09,12.43,2E-3,null,9.8484848484848477,7.1969696969696972,null,null,16,12,4,132,null,10,7,3,132]
[null,"S2","Transformer event rate – fault ",18.8,11.97,6.49,2E-3,null,9.6702290076335871,6.216793893129771,null,null,18,10,8,131,null,7,6,1,125]
[null,"S3","Reactive plant event rate – fault ",30.43,20.67,14.9,1E-3,null,10.894113291373566,8.867086264346538,null,null,7,4,3,74,null,9,9,0,73]
[null,"S4","Lines event rate – forced ",20.74,10.14,3.82,1E-3,null,2.2727272727272729,1.5151515151515151,null,null,3,1,2,132,null,3,3,0,132]
[null,"S5","Transformer event rate – forced ",15.88,11.97,7.54,1E-3,null,7.3801526717557255,6.2351145038167939,null,null,12,9,3,131,null,7,7,0,125]
[null,"S6","Reactive plant event rate – forced ",34.659999999999997,27.78,19.649999999999999,5.0000000000000001E-4,null,8.1636430951499452,5.451684561273602,null,null,6,3,3,74,null,6,5,1,73]
[]
[null,null,"Loss of supply event frequency","Floor","Target","Cap","Revenue at Risk",null,null,null,null,null,"Performance\n(Without exclusions)","Performance\n(With exclusions)","Exclusions"]
[null,"S7","Loss of supply events: Number of events > x system minutes per annum",4,1,0,1.5E-3,null,null,null,null,null,1,1,0]
[null,"S8","Loss of supply events: Number of events > y system minutes per annum",2,1,0,1.5E-3,null,null,null,null,null,0,0,0]
[]
[null,null,"Average outage duration","Floor","Target","Cap","Revenue at Risk",null,"Performance\n(Without exclusions)","Performance\n(With exclusions)","Exclusions",null,"Performance\n(Without exclusions)","Performance\n(With exclusions)","Exclusions\n(capped)",null,null,"Performance\n(Without exclusions)","Performance\n(With exclusions)","Exclusions"]
[null,"S9","Average Outage Duration",87.2,45.6,10.199999999999999,2E-3,null,133.73750000000001,108.72499999999999,0,null,"Number of LOS events ",null,null,null,null,"Number of LOS events "]
[null,null,null,null,null,null,null,null,null,null,null,null,4,4,0,null,null,2,1,1]
[null,null,null,null,null,null,null,null,null,null,null,null,"Aggregate LOS minutes",null,null,null,null,"Aggregate LOS minutes"]
[null,null,null,null,null,null,null,null,null,null,null,null,678,678,0,null,null,195.95,47.949999999999989,148]
[]
[null,null,"Proper operation of equipment","Floor","Target","Cap","Revenue at Risk",null,null,null,null,null,"Performance\n(Without exclusions)","Performance\n(With exclusions)"]
[null,"S10","Failure of protection system",40,31,22,0,null,null,null,null,null,0,0]
[null,"S11","Material failure of SCADA ",3,1,0,0,null,null,null,null,null,4,4]
[null,"S12","Incorrect operational isolation of primary or secondary equipment",11,6,3,0,null,null,null,null,null,0,0]

{"sheet":"2023","index":8,"n_rows":29,"n_cols":21,"rows_kept":29,"cut":false,"hidden":false,"merged":[[22,12,22,14],[22,17,22,19],[3,3,3,4],[4,3,4,4],[6,2,6,6],[6,8,6,10],[6,12,6,15],[6,17,6,20]]}
[]
[null,"Service Standards Performance"]
[]
[null,null,"TNSP","AusNet Services"]
[null,null,"Assessment period",2023]
[]
[null,"S","Performance parameter",null,null,null,null,null,"Average 2023 & 2022",null,null,null,2023,null,null,null,null,2022]
[null,null,"Unplanned circuit outage event rate (%)","Floor","Target","Cap","Revenue at Risk",null,"Performance\n(Without exclusions)","Performance\n(With exclusions)","Exclusions",null,"Performance\n(Without exclusions)","Performance\n(With exclusions)","Exclusions","No. of defined circuits",null,"Performance\n(Without exclusions)","Performance\n(With exclusions)","Exclusions","No. of defined circuits"]
[null,"S1","Lines event rate – fault ",22.37,17.09,12.43,2E-3,null,10.137085137085137,5.8261183261183263,null,null,10,7,3,132,null,16,8,8,126]
[null,"S2","Transformer event rate – fault ",18.8,11.97,6.49,2E-3,null,6.7682539682539673,5.9714285714285715,null,null,7,6,1,125,null,10,9,1,126]
[null,"S3","Reactive plant event rate – fault ",30.43,20.67,14.9,1E-3,null,8.2477168949771684,8.2477168949771684,null,null,9,9,0,73,null,3,3,0,72]
[null,"S4","Lines event rate – forced ",20.74,10.14,3.82,1E-3,null,3.9141414141414144,3.9141414141414144,null,null,3,3,0,132,null,7,7,0,126]
[null,"S5","Transformer event rate – forced ",15.88,11.97,7.54,1E-3,null,7.958730158730158,7.1650793650793645,null,null,7,7,0,125,null,13,11,2,126]
[null,"S6","Reactive plant event rate – forced ",34.659999999999997,27.78,19.649999999999999,5.0000000000000001E-4,null,7.5818112633181123,6.2024353120243525,null,null,6,5,1,73,null,5,4,1,72]
[]
[null,null,"Loss of supply event frequency","Floor","Target","Cap","Revenue at Risk",null,null,null,null,null,"Performance\n(Without exclusions)","Performance\n(With exclusions)","Exclusions"]
[null,"S7","Loss of supply events: Number of events > x system minutes per annum",4,1,0,1.5E-3,null,null,null,null,null,1,0,1]
[null,"S8","Loss of supply events: Number of events > y system minutes per annum",2,1,0,1.5E-3,null,null,null,null,null,0,0,0]
[]
[null,null,"Average outage duration","Floor","Target","Cap","Revenue at Risk",null,"Performance\n(Without exclusions)","Performance\n(With exclusions)","Exclusions",null,"Performance\n(Without exclusions)","Performance\n(With exclusions)","Exclusions\n(capped)",null,null,"Performance\n(Without exclusions)","Performance\n(With exclusions)","Exclusions"]
[null,"S9","Average Outage Duration",87.2,45.6,10.199999999999999,2E-3,null,49.987499999999997,24.924999998556444,0,null,"Number of LOS events ",null,null,null,null,"Number of LOS events "]
[null,null,null,null,null,null,null,null,null,null,null,null,2,1,1,null,null,2,2,0]
[null,null,null,null,null,null,null,null,null,null,null,null,"Aggregate LOS minutes",null,null,null,null,"Aggregate LOS minutes"]
[null,null,null,null,null,null,null,null,null,null,null,null,195.95,47.849999997112889,148.1000000028871,null,null,4,4,0]
[]
[null,null,"Proper operation of equipment","Floor","Target","Cap","Revenue at Risk",null,null,null,null,null,"Performance\n(Without exclusions)","Performance\n(With exclusions)"]
[null,"S10","Failure of protection system",40,31,22,0,null,null,null,null,null,1,1]
[null,"S11","Material failure of SCADA ",3,1,0,0,null,null,null,null,null,1,1]
[null,"S12","Incorrect operational isolation of primary or secondary equipment",11,6,3,0,null,null,null,null,null,1,1]

{"sheet":"2022 Q1","index":9,"n_rows":49,"n_cols":20,"rows_kept":49,"cut":false,"hidden":false,"merged":[[0,8,0,9],[0,11,0,14],[0,16,0,19]]}
[null,null,null,null,null,null,null,null,"Performance",null,null,"Number of events pa - 2022",null,null,null,null,"Number of events pa - 2021"]
[null,"Average circuit outage rate (%)","Floor","Target","Cap","Weighting"," ","Unit","without exclusions","with exclusions",null,"without exclusions","with exclusions","exclusions","No. of defined circuits",null,"without exclusions","with exclusions","exclusions","No. of defined circuits"]
["S1","line outage - fault ",33.799999999999997,25.4,16,0.2,null,"average circuit outage rate ",14.68253968253968,9.9206349206349209,null,6,2,4,126,null,31,23,8,126]
["S2","transformer outage - fault",31.8,20.3,9.1999999999999993,0.2,null,"average circuit outage rate ",11.111111111111111,9.9206349206349209,null,1,0,1,126,null,27,25,2,126]
["S3","reactive plant - fault",61.2,34.299999999999997,18.399999999999999,0.1,null,"average circuit outage rate ",12.103174603174601,12.103174603174601,null,2,2,0,72,null,15,15,0,70]
["S4","line outage - forced",17.100000000000001,15,12.3,0.1,null,"average circuit outage rate ",26.190476190476193,12.698412698412698,null,0,0,0,126,null,66,32,34,126]
["S5","transformer outage - forced",14.4,10.4,6.1,0.1,null,"average circuit outage rate ",9.5238095238095237,7.9365079365079358,null,3,3,0,126,null,21,17,4,126]
["S6","reactive plant - forced",40.700000000000003,30.9,19.899999999999999,0.05,null,"average circuit outage rate ",7.083333333333333,7.083333333333333,null,3,3,0,72,null,7,7,0,70]
[null,"Loss of supply event frequency*",null,null,null,null,null,null,null,null,"exclusions"]
["S7",">0.05 system minutes",0,1,2,0.15,null,"number of events per annum",0,0,0]
["S8",">0.3 system minutes",0,1,1,0.15,null,"number of events per annum",0,0,0]
[]
[null,"Average outage duration"]
["S9","Average outage duration",3.4,75.099999999999994,334.2,0.2,null,"Average outage duration",18.5,18.5,0,"number of LOS events ",0,0,0,null,2,2,0]
[null,null,null,null,null,null,null,null,null,null,null,"Aggregate LOS minutes",0,0,0,null,74,74,0]
[null,"Proper operation of equipment"]
["S10","failure of protection system",23,32,42,0,null,"number of events per annum",3]
["S11","Material failure of SCADA",0,1.8,4,0,null,"number of events per annum",1]
["S12","Incorrect operational isolation of ",2,5.6,10,0,null,"number of events per annum",0]
[]
[null,"TNSP","AusNet Services",null,null,null,null,null,"Adjust Loss of supply event frequency"]
[null,"STPIS version","October, 2015",null,null,null,null,null,">0.05 system minutes",5,2,0]
[null,"Regulatory Determination"," 2017/18 - 2021/22",null,null,null,null,null,">0.3 system minutes",2,1,0]
[null,"Base Year Allowed Revenue",534769514.83947301]
[null,"Base Year ","2017-18"]
[null,"Commencement of regulatory year","2017-04-01"]
[null,"X factor ",1.1061950254494805E-2]
[null,"Forecast CPI - Final Decision",2.39980430500282E-2]
[]
[null,null,"2016-09-01","2017-09-01","2018-09-01","2019-09-01","2020-09-01","2021-09-01"]
[null,"Actual CPI",109.4,111.4,113.5,115.4,116.2,119.7]
[null,"NEEDS TO BE INPUT FROM ABS CPI WHEN ACTUAL BECOMES AVAILABLE"]
[null,null,"2016–17","2017–18","2018–19","2019–20","2020–21","2021–22"]
[null,"Annual CPI",1.8281535648994485E-2,1.8850987432674993E-2,1.6740088105726914E-2,6.9324090121316573E-3,3.0120481927710774E-2,2.39980430500282E-2]
[]
[null,null,"2017-18","2018-19","2019-20","2020-21","2021-22"]
[null,"X-factor rerun on debt update",1.1061950254494805E-2,1.083586345613188E-2,1.1840661420819E-2,1.6431411613678438E-2,1.5131665735612806E-2]
[]
[null,null,"2017–18","2018–19","2019–20","2020–21","2021–22"]
[null,"Annual Revenue",534769514.83947301,538645297.52407134,542301146.63891006,542319375.12336862,537815870.63693106]
[]
[null,"Calendar year revene ","Q2-Q4 2017",2018,2019,2020,2021,"Q1 2022"]
[null,"Revenue",401077136.12960476,537676351.85292172,541387184.36020041,542314818.00225401,538941746.75854051,134453967.65923277]
[]
[null,"Other inputs"]
[null,"Assessment Period","Q1 2022"]
[null,"Financial year to affect revenue:","2023/24"]
[null,"Date prepared:"," "]
[null,"Revision date: "," "]

{"sheet":"2022 Q2-4","index":10,"n_rows":49,"n_cols":20,"rows_kept":49,"cut":false,"hidden":false,"merged":[[0,8,0,9],[0,11,0,14],[0,16,0,19]]}
[null,null,null,null,null,null,null,null,"Performance",null,null,"Number of events pa - 2022",null,null,null,null,"Number of events pa - 2021"]
[null,"Average circuit outage rate (%)","Floor","Target","Cap","Weighting"," ","Unit","without exclusions","with exclusions",null,"without exclusions","with exclusions","exclusions","No. of defined circuits",null,"without exclusions","with exclusions","exclusions","No. of defined circuits"]
["S1","line outage - fault ",22.37,17.09,12.43,0.2,null,"average circuit outage rate ",16.269841269841269,11.507936507936508,null,10,6,4,126,null,31,23,8,126]
["S2","transformer outage - fault",18.8,11.97,6.49,0.2,null,"average circuit outage rate ",14.285714285714285,13.492063492063492,null,9,9,0,126,null,27,25,2,126]
["S3","reactive plant - fault",30.43,20.669999999999998,14.899999999999999,0.1,null,"average circuit outage rate ",11.408730158730158,11.408730158730158,null,1,1,0,72,null,15,15,0,70]
["S4","line outage - forced",20.74,10.14,3.82,0.1,null,"average circuit outage rate ",28.968253968253972,15.476190476190476,null,7,7,0,126,null,66,32,34,126]
["S5","transformer outage - forced",15.879999999999999,11.97,7.5399999999999991,0.1,null,"average circuit outage rate ",12.301587301587301,9.9206349206349209,null,10,8,2,126,null,21,17,4,126]
["S6","reactive plant - forced",34.660000000000004,27.779999999999998,19.650000000000002,0.05,null,"average circuit outage rate ",6.3888888888888884,5.6944444444444446,null,2,1,1,72,null,7,7,0,70]
[null,"Loss of supply event frequency*",null,null,null,null,null,null,null,null,"exclusions"]
["S7",">0.05 system minutes",3,1,0,0.15,null,"number of events per annum",2,2,0]
["S8",">0.3 system minutes",2,1,0,0.15,null,"number of events per annum",0,0,0]
[]
[null,"Average outage duration"]
["S9","Average outage duration",87.2,45.6,10.199999999999999,0.2,null,"Average outage duration",38.25,38.25,{"$error":"#DIV/0!"},"number of LOS events ",2,2,0,null,2,2,0]
[null,null,null,null,null,null,null,null,null,null,null,"Aggregate LOS minutes",79,79,0,null,74,74,0]
[null,"Proper operation of equipment"]
["S10","failure of protection system",40,31,22,0,null,"number of events per annum",3]
["S11","Material failure of SCADA",3,1,0,0,null,"number of events per annum",1]
["S12","Incorrect operational isolation of ",11,6,3,0,null,"number of events per annum",0]
[]
[null,"TNSP","AusNet Services",null,null,null,null,null,"Adjust Loss of supply event frequency"]
[null,"STPIS version","October, 2015",null,null,null,null,null,">0.05 system minutes",0,1,4]
[null,"Regulatory Determination","2022-27",null,null,null,null,null,">0.3 system minutes",0,1,2]
[null,"Base Year Allowed Revenue",570717445.94762993]
[null,"Base Year ","2021/2022"]
[null,"Commencement of regulatory year","2022-04-01"]
[null,"X factor ",1.3289829305054684E-2]
[null,"Forecast CPI - Final Decision",2.4499511480039926E-2]
[]
[null,null,"2022-09-01","2023-09-01","2024-09-01","2025-09-01","2026-09-01","2027-09-01"]
[null,"Actual CPI",128.4]
[null,"NEEDS TO BE INPUT FROM ABS CPI WHEN ACTUAL BECOMES AVAILABLE"]
[null,null,"2021/22","2022/23","2023/24","2024/25","2025/26","2026/27"]
[null,"Annual CPI",2.4499511480039926E-2,2.4499511480039926E-2,2.4499511480039926E-2,2.4499511480039926E-2,2.4499511480039926E-2,2.4499511480039926E-2]
[]
[null,null,"2022/23","2023/24","2024/25","2025/26","2026/27"]
[null,"X-factor rerun on debt update",1.3289829305054684E-2]
[]
[null,null,"2022/23","2023/24","2024/25","2025/26","2026/27"]
[null,"Annual Revenue",570717445.94762993,584699744.5664829,599024602.67086589,613700412.80082715,628735773.1095463]
[]
[null,"Calendar year revene ","Q2-Q4 2022",2023,2024,2025,2026,"Q1 2027"]
[null,"Revenue",428038084.46072245,581204169.91176963,595443388.14477015,610031460.26833689,624976933.03236651,157183943.27738658]
[]
[null,"Other inputs"]
[null,"Assessment Period","Q2-Q4 2022"]
[null,"Financial year to affect revenue:","2023/24"]
[null,"Date prepared:"," "]
[null,"Revision date: "," "]

{"sheet":"2021","index":11,"n_rows":49,"n_cols":20,"rows_kept":49,"cut":false,"hidden":false,"merged":[[0,8,0,9],[0,11,0,14],[0,16,0,19]]}
[null,null,null,null,null,null,null,null,"Performance",null,null,"Number of events pa - 2021",null,null,null,null,"Number of events pa - 2020"]
[null,"Average circuit outage rate (%)","Floor","Target","Cap","Weighting"," ","Unit","without exclusions","with exclusions",null,"without exclusions","with exclusions","exclusions","No. of defined circuits",null,"without exclusions","with exclusions","exclusions","No. of defined circuits"]
["S1","line outage - fault ",33.799999999999997,25.4,16,0.2,null,"average circuit outage rate ",24.701587301587303,17.926984126984124,null,31,23,8,126,null,31,22,9,125]
["S2","transformer outage - fault",31.8,20.3,9.1999999999999993,0.2,null,"average circuit outage rate ",19.308035714285715,17.733134920634917,null,27,25,2,126,null,22,20,2,128]
["S3","reactive plant - fault",61.199999999999996,34.299999999999997,18.399999999999999,0.1,null,"average circuit outage rate ",21.981891348088531,21.981891348088531,null,15,15,0,70,null,16,16,0,71]
["S4","line outage - forced",17.100000000000001,15,12.3,0.1,null,"average circuit outage rate ",60.590476190476195,16.298412698412697,null,66,32,34,126,null,86,9,77,125]
["S5","transformer outage - forced",14.399999999999999,10.4,6.1,0.1,null,"average circuit outage rate ",16.536458333333332,12.605406746031743,null,21,17,4,126,null,21,15,6,128]
["S6","reactive plant - forced",40.699999999999996,30.9,19.899999999999999,0.05,null,"average circuit outage rate ",14.859154929577464,14.859154929577464,null,7,7,0,70,null,14,14,0,71]
[null,"Loss of supply event frequency*",null,null,null,null,null,null,null,null,"exclusions"]
["S7",">0.05 system minutes",5,2,0,0.15,null,"number of events per annum",0,0,0]
["S8",">0.3 system minutes",2,1,0,0.15,null,"number of events per annum",0,0,0]
[]
[null,"Average outage duration"]
["S9","Average outage duration",334.2,75.099999999999994,3.4,0.2,null,"Average outage duration",47.3,47.3,{"$error":"#DIV/0!"},"number of LOS events ",2,2,0,null,5,5,0]
[null,null,null,null,null,null,null,null,null,null,null,"Aggregate LOS minutes",74,74,0,null,288,288,0]
[null,"Proper operation of equipment"]
["S10","failure of protection system",42,32,23,0,null,"number of events per annum",16,16,0]
["S11","Material failure of SCADA",4,1.8,0,0,null,"number of events per annum",3,3,0]
["S12","Incorrect operational isolation of ",10,5.6,2,0,null,"number of events per annum",3,3,0]
[]
[null,"TNSP","AusNet Services"]
[null,"STPIS version","October, 2015"]
[null,"Regulatory Determination"," 2017/18 - 2021/22"]
[null,"Base Year Allowed Revenue",534769514.83947301]
[null,"Base Year ","2017-18"]
[null,"Commencement of regulatory year","2017-04-01"]
[null,"X factor ",1.1061950254494805E-2]
[null,"Forecast CPI - Final Decision",2.39980430500282E-2]
[]
[null,null,"2016-09-01","2017-09-01","2018-09-01","2019-09-01","2020-09-01","2021-09-01"]
[null,"Actual CPI",109.4,111.4,113.5,115.4,116.2,119.7]
[null,"NEEDS TO BE INPUT FROM ABS CPI WHEN ACTUAL BECOMES AVAILABLE"]
[null,null,"2016–17","2017–18","2018–19","2019–20","2020–21","2021–22"]
[null,"Annual CPI",1.8281535648994485E-2,1.8850987432674993E-2,1.6740088105726914E-2,6.9324090121316573E-3,3.0120481927710774E-2,2.39980430500282E-2]
[]
[null,null,"2017-18","2018-19","2019-20","2020-21","2021-22"]
[null,"X-factor rerun on debt update",1.1061950254494805E-2,1.083586345613188E-2,1.1840661420819E-2,1.6431411613678438E-2,1.9099999999999999E-2]
[]
[null,null,"2017–18","2018–19","2019–20","2020–21","2021–22"]
[null,"Annual Revenue",534769514.83947301,538645297.52407134,542301146.63891006,542319375.12336862,535648846.80935121]
[]
[null,"Calendar year revene ","Q2-Q4 2017",2018,2019,2020,2021,"Q1 2022"]
[null,"Revenue",401077136.12960476,537676351.85292172,541387184.36020041,542314818.00225401,537316478.88785553,133912211.7023378]
[]
[null,"Other inputs"]
[null,"Assessment Period",2021]
[null,"Financial year to affect revenue:","2022/23"]
[null,"Date prepared:"," "]
[null,"Revision date: "," "]

{"sheet":"2020","index":12,"n_rows":49,"n_cols":20,"rows_kept":49,"cut":false,"hidden":false,"merged":[[0,8,0,9],[0,11,0,14],[0,16,0,19]]}
[null,null,null,null,null,null,null,null,"Performance",null,null,"Number of events pa - 2020",null,null,null,null,"Number of events pa - 2019"]
[null,"Average circuit outage rate (%)","Floor","Target","Cap","Weighting"," ","Unit","without exclusions","with exclusions",null,"without exclusions","with exclusions","exclusions","No. of defined circuits",null,"without exclusions","with exclusions","exclusions","No. of defined circuits"]
["S1","line outage - fault ",33.799999999999997,25.4,16,0.2,null,"average circuit outage rate ",21.74959349593496,15.304065040650405,null,31,22,9,125,null,23,16,7,123]
["S2","transformer outage - fault",31.8,20.3,9.1999999999999993,0.2,null,"average circuit outage rate ",12.109375,10.9375,null,22,20,2,128,null,9,8,1,128]
["S3","reactive plant - fault",61.199999999999996,34.299999999999997,18.399999999999999,0.1,null,"average circuit outage rate ",27.464788732394368,26.056338028169012,null,16,16,0,71,null,23,21,2,71]
["S4","line outage - forced",17.100000000000001,15,12.3,0.1,null,"average circuit outage rate ",63.668292682926818,6.0390243902439025,null,86,9,77,125,null,72,6,66,123]
["S5","transformer outage - forced",14.399999999999999,10.4,6.1,0.1,null,"average circuit outage rate ",14.0625,11.71875,null,21,15,6,128,null,15,15,0,128]
["S6","reactive plant - forced",40.699999999999996,30.9,19.899999999999999,0.05,null,"average circuit outage rate ",23.239436619718308,22.535211267605632,null,14,14,0,71,null,19,18,1,71]
[null,"Loss of supply event frequency*",null,null,null,null,null,null,null,null,"exclusions"]
["S7",">0.05 system minutes",5,2,0,0.15,null,"number of events per annum",3,3,0]
["S8",">0.3 system minutes",2,1,0,0.15,null,"number of events per annum",1,1,0]
[]
[null,"Average outage duration"]
["S9","Average outage duration",334.2,75.099999999999994,3.4,0.2,null,"Average outage duration",77.63333333333334,72.300000000756697,{"$error":"#DIV/0!"},"number of LOS events ",5,5,0,null,3,2,1]
[null,null,null,null,null,null,null,null,null,null,null,"Aggregate LOS minutes",288,288,0,null,293,174.0000000030268,118.9999999969732]
[null,"Proper operation of equipment"]
["S10","failure of protection system",42,32,23,0,null,"number of events per annum",24,23,1]
["S11","Material failure of SCADA",4,1.8,0,0,null,"number of events per annum",0,0,0]
["S12","Incorrect operational isolation of ",10,5.6,2,0,null,"number of events per annum",6,6,0]
[]
[null,"TNSP","AusNet Services"]
[null,"STPIS version","October, 2015"]
[null,"Regulatory Determination"," 2017/18 - 2021/22"]
[null,"Base Year Allowed Revenue",534769514.83947301]
[null,"Base Year ","2017-18"]
[null,"Commencement of regulatory year","2017-04-01"]
[null,"X factor ",1.1061950254494805E-2]
[null,"Forecast CPI - Final Decision",2.39980430500282E-2]
[]
[null,null,"2016-09-01","2017-09-01","2018-09-01","2019-09-01","2020-09-01","2021-09-01"]
[null,"Actual CPI",109.4,111.4,113.5,115.4,116.2]
[null,"NEEDS TO BE INPUT FROM ABS CPI WHEN ACTUAL BECOMES AVAILABLE"]
[null,null,"2016–17","2017–18","2018–19","2019–20","2020–21","2021–22"]
[null,"Annual CPI",1.8281535648994485E-2,1.8850987432674993E-2,1.6740088105726914E-2,6.9324090121316573E-3,2.39980430500282E-2,2.39980430500282E-2]
[]
[null,null,"2017-18","2018-19","2019-20","2020-21","2021-22"]
[null,"X-factor rerun on debt update",1.1061950254494805E-2,1.083586345613188E-2,1.1840661420819E-2,1.6431411613678438E-2,1.12E-2]
[]
[null,null,"2017–18","2018–19","2019–20","2020–21","2021–22"]
[null,"Annual Revenue",534769514.83947301,538645297.52407134,542301146.63891006,542319375.12336862,539962870.55264199]
[]
[null,"Calendar year revene ","Q2-Q4 2017",2018,2019,2020,2021,"Q1 2022"]
[null,"Revenue",401077136.12960476,537676351.85292172,541387184.36020041,542314818.00225401,540551996.69532371,134990717.6381605]
[]
[null,"Other inputs"]
[null,"Assessment Period",2020]
[null,"Financial year to affect revenue:","2021/22"]
[null,"Date prepared:"," "]
[null,"Revision date: "," "]